Workbook

Sheet Calculator
D2: =D3 -> M4 | F2: Buoys | G2: Pts | H2: Ft | J2: S | K2: T | L2: J | N2: Total | R2: Benchmark | T2: Division | V2: Year
D3: =T3 -> M4 | F3: =T3 -> M4 | G3: =T3 -> M4 | H3: =T3 -> M4 | J3: =S7 -> 42 | K3: =T3 -> M4 | L3: =S9 -> 0.2 | N3: =T3 -> M4 | R3: Standard2 | T3: M4 | V3: 2013
D4: =VLOOKUP(T3,DivisionNames,3,FALSE) -> Men 4
D5: Standard2 | F5: =VLOOKUP($D$4,DivisionInfo,2,FALSE) -> 102 | G5: =VLOOKUP($D$4,DivisionInfo,3,FALSE) -> 5500 | H5: =VLOOKUP($D$4,DivisionInfo,4,FALSE) -> 161 | J5: =(Standards!AF5/Standards!AF$5*multiplier)^exponent -> 1500 | K5: =(G5/G$5*multiplier)^exponent -> 1500 | L5: =IF(OR(D$4="Boys 1",D$4="Girls 1"),"n/a",(Standards!AG5/Standards!AG$5*multiplier)^Standards!E2) -> 1500 | R5: Growth rate | T5: 1.6 | V5: Percentages compared to the benchmark
B6: =IF(N6="","",IF(AND(F6="",G6="",H6=""),"",RANK(N6,$N$6:$N$16))) ->  | W6: S | X6: T | Y6: J | AA6: Total
B7: 1 | D7: Whetsel, Kirby | F7: 92.5 | G7: 2310 | H7: 158 | J7: =IF(F7="",0,(Standards!AF7/Standards!AF$5*multiplier)^exponent) -> 1138.453937 | K7: =IF(G7="",0,(G7/G$5*multiplier)^exponent) -> 374.3605905 | L7: =IF(OR(D$4="Boys 1",D$4="Girls 1",H7=""),0,(Standards!AG7/Standards!AG$5*multiplier)^Standards!E2) -> 1444.491212 | N7: =IF(AND(F7="",G7="",H7=""),"",IF(OR(D$4="Boys 1",D$4="Girls 1"),J7+K7,J7+K7+L7)) -> 2957.30574 | R7: SOF | S7: =VLOOKUP(D4,DivisionInfo,5,0)+T7 -> 42 | T7: 0 | V7: =LEFT(VLOOKUP(1,scored,3,FALSE),FIND(",",VLOOKUP(1,scored,3,FALSE))-1) -> Whetsel | W7: =(VLOOKUP(1,scored,5,FALSE)-$S$7)/($F$5-$S$7) -> 0.8416666667 | X7: =VLOOKUP(1,scored,6,FALSE)/$G$5 -> 0.42 | Y7: =IF(OR(D2="G1",D2="B1"),"n/a",(VLOOKUP(1,scored,7,FALSE)-($S$9*$H$5))/(0.85*$H$5)) -> 0.9192546584 | AA7: =IF(OR(D2="G1",D2="B1"),W7+X7,W7+X7+Y7) -> 2.180921325
B8: 2 | D8: Newman, Thomas | F8: 92 | G8: 2570 | H8: 155 | J8: =IF(F8="",0,(Standards!AF8/Standards!AF$5*multiplier)^exponent) -> 1120.472663 | K8: 444.0214525 | L8: =IF(OR(D$4="Boys 1",D$4="Girls 1",H8=""),0,(Standards!AG8/Standards!AG$5*multiplier)^Standards!E2) -> 1389.771064 | N8: 2954.26518 | V8: =LEFT(VLOOKUP(2,scored,3,FALSE),FIND(",",VLOOKUP(2,scored,3,FALSE))-1) -> Newman | W8: =(VLOOKUP(2,scored,5,FALSE)-$S$7)/($F$5-$S$7) -> 0.8333333333 | X8: =VLOOKUP(2,scored,6,FALSE)/$G$5 -> 0.4672727273 | Y8: =IF(OR(D2="G1",D2="B1"),"n/a",(VLOOKUP(2,scored,7,FALSE)-($S$9*$H$5))/(0.85*$H$5)) -> 0.8973328462 | AA8: =IF(OR(D2="G1",D2="B1"),W8+X8,W8+X8+Y8) -> 2.197938907
B9: 3 | D9: Grau, Mitch | F9: 87 | G9: 2220 | H9: 164 | J9: =IF(F9="",0,(Standards!AF9/Standards!AF$5*multiplier)^exponent) -> 946.649654 | K9: 351.2980305 | L9: =IF(OR(D$4="Boys 1",D$4="Girls 1",H9=""),0,(Standards!AG9/Standards!AG$5*multiplier)^Standards!E2) -> 1556.290028 | N9: 2854.237712 | R9: JOF | S9: =IF(OR(D$4="Boys 1",D$4="Girls 1"),"n/a",Standards!J$2+T9) -> 0.2 | T9: 0 | V9: =LEFT(VLOOKUP(3,scored,3,FALSE),FIND(",",VLOOKUP(3,scored,3,FALSE))-1) -> Grau | W9: =(VLOOKUP(3,scored,5,FALSE)-$S$7)/($F$5-$S$7) -> 0.75 | X9: =VLOOKUP(3,scored,6,FALSE)/$G$5 -> 0.4036363636 | Y9: =IF(OR(D2="G1",D2="B1"),"n/a",(VLOOKUP(3,scored,7,FALSE)-($S$9*$H$5))/(0.85*$H$5)) -> 0.9630982828 | AA9: =IF(OR(D2="G1",D2="B1"),W9+X9,W9+X9+Y9) -> 2.116734646
B10: 4 | D10: Haines, Hutch | F10: 97.5 | G10: 1010 | H10: 154 | J10: =IF(F10="",0,(Standards!AF10/Standards!AF$5*multiplier)^exponent) -> 1324.091603 | K10: 99.63803497 | L10: =IF(OR(D$4="Boys 1",D$4="Girls 1",H10=""),0,(Standards!AG10/Standards!AG$5*multiplier)^Standards!E2) -> 1371.707583 | N10: 2795.437221
B11: 5 | D11: Snape, R Scott | F11: 94 | G11: 1140 | H11: 141 | J11: =IF(F11="",0,(Standards!AF11/Standards!AF$5*multiplier)^exponent) -> 1193.038911 | K11: 120.9368682 | L11: =IF(OR(D$4="Boys 1",D$4="Girls 1",H11=""),0,(Standards!AG11/Standards!AG$5*multiplier)^Standards!E2) -> 1145.070196 | N11: 2459.045974 | R11: Overall multiple | T11: 1500 | V11: Separation using new calc | Y11: =LEFT(VLOOKUP(1,scored,3,FALSE),FIND(",",VLOOKUP(1,scored,3,FALSE))-1) & " vs " & LEFT(VLOOKUP(2,scored,3,FALSE),FIND(",",VLOOKUP(2,scored,3,FALSE))-1) -> Whetsel vs Newman
B12: 6 | D12: Webb, Greg | F12: 86 | G12: 1940 | H12: 140 | J12: =IF(F12="",0,(Standards!AF12/Standards!AF$5*multiplier)^exponent) -> 913.2160607 | K12: 283.1351078 | L12: =IF(OR(D$4="Boys 1",D$4="Girls 1",H12=""),0,(Standards!AG12/Standards!AG$5*multiplier)^Standards!E2) -> 1128.277417 | N12: 2324.628585 | X12: S | Y12: T | Z12: J | AA12: Overall
B13: 7 | D13: Lindsey, Jeff | F13: 90.5 | G13: 2170 | H13: 127 | J13: =IF(F13="",0,(Standards!AF13/Standards!AF$5*multiplier)^exponent) -> 1067.175977 | K13: 338.7244373 | L13: =IF(OR(D$4="Boys 1",D$4="Girls 1",H13=""),0,(Standards!AG13/Standards!AG$5*multiplier)^Standards!E2) -> 918.5847221 | N13: 2324.485136 | V13: Calculated | X13: =VLOOKUP(1,scored,9,FALSE)-VLOOKUP(2,scored,9,FALSE) -> 17.98127384 | Y13: =VLOOKUP(1,scored,10,FALSE)-VLOOKUP(2,scored,10,FALSE) -> -69.66086198 | Z13: =VLOOKUP(1,scored,11,FALSE)-VLOOKUP(2,scored,11,FALSE) -> 54.72014795 | AA13: =VLOOKUP(1,B6:N16,13,FALSE)-VLOOKUP(2,B6:N16,13,FALSE) -> 3.04055981
B14: 8 | D14: Estes, Robbie | F14: 94 | G14: 1370 | H14: 123 | J14: =IF(F14="",0,(Standards!AF14/Standards!AF$5*multiplier)^exponent) -> 1193.038911 | K14: 162.2795756 | L14: =IF(OR(D$4="Boys 1",D$4="Girls 1",H14=""),0,(Standards!AG14/Standards!AG$5*multiplier)^Standards!E2) -> 857.3600358 | N14: 2212.678522 | V14: Raw score difference | X14: =VLOOKUP(1,scored,5,FALSE)-VLOOKUP(2,scored,5,FALSE) -> 0.5 | Y14: =VLOOKUP(1,scored,6,FALSE)-VLOOKUP(2,scored,6,FALSE) -> -260 | Z14: =VLOOKUP(1,scored,7,FALSE)-VLOOKUP(2,scored,7,FALSE) -> 3
B15: 10 | D15: Budzynski, Mark | F15: 98 | G15: 1330 | H15: 102 | J15: =IF(F15="",0,(Standards!AF15/Standards!AF$5*multiplier)^exponent) -> 1343.22913 | K15: 154.7652956 | L15: =IF(OR(D$4="Boys 1",D$4="Girls 1",H15=""),0,(Standards!AG15/Standards!AG$5*multiplier)^Standards!E2) -> 562.8524417 | N15: 2060.846867
B16: 9 | D16: Wenzel, Norman | F16: 88 | G16: 320 | H16: 138 | J16: =IF(F16="",0,(Standards!AF16/Standards!AF$5*multiplier)^exponent) -> 980.5320396 | K16: 15.83984477 | L16: =IF(OR(D$4="Boys 1",D$4="Girls 1",H16=""),0,(Standards!AG16/Standards!AG$5*multiplier)^Standards!E2) -> 1094.97183 | N16: 2091.343715
P18: =HLOOKUP(HLOOKUP(T3,countAdj,3,FALSE),buoyCount,2,FALSE) -> 66 | R18: From 2013 Nationals | V18: T | W18: J | X18: Total | AA18: Placement change
R19: =LEFT(S21,FIND(",",S21)-1) & " vs " & LEFT(S22,FIND(",",S22)-1) -> Whetsel vs Newman | U19: =U21-U22 -> 15 | V19: =V21-V22 -> -38.8 | W19: =W21-W22 -> 37 | X19: =X21-X22 -> 13.2
D20: Slalom info:
D21: =D7 -> Whetsel, Kirby | F21: =IF(MOD(F7,6)=0,6,MOD(F7,6)) -> 2.5 | G21: @ | H21: =IF(F7>$P$18,HLOOKUP(IF(F7>$P$18,INT(F7/6)+IF(F7>$P$18,HLOOKUP($T$3,countAdj,4,FALSE),0)+IF(F21<6,1,0),0),buoyOffset,2,FALSE) & "m",HLOOKUP(INT(F7/6)+IF(F21<6,1,0),buoyOffset,2,FALSE) & "k") -> 12m | R21: 1 | S21: Whetsel, Kirby | U21: 598.5 | V21: 697.8 | W21: 1233.1 | X21: 2529.4 | Z21: =IFERROR(R21-B7,"") -> 0
D22: =D8 -> Newman, Thomas | F22: 2 | G22: @ | H22: 12m | R22: 2 | S22: Newman, Thomas | U22: 583.5 | V22: 736.6 | W22: 1196.1 | X22: 2516.2 | Z22: 0
D23: Grau, Mitch | F23: 3 | G23: @ | H23: 13m | R23: 3 | S23: Grau, Mitch | U23: 450.4 | V23: 683.9 | W23: 1308.1 | X23: 2442.4 | Z23: 0
D24: Haines, Hutch | F24: 1.5 | G24: @ | H24: 11.25m | R24: 4 | S24: Haines, Hutch | U24: 767.7 | V24: 458.4 | W24: 1183.8 | X24: 2409.9 | Z24: 0
D25: Snape, R Scott | F25: 4 | G25: @ | H25: 12m | R25: 5 | S25: Snape, R Scott | U25: 645.5 | V25: 487.4 | W25: 1026.8 | X25: 2159.7 | Z25: 0
D26: Webb, Greg | F26: 2 | G26: @ | H26: 13m | R26: 6 | S26: Webb, Greg | U26: 427.2 | V26: 638.6 | W26: 1015 | X26: 2080.8 | Z26: 0
D27: Lindsey, Jeff | F27: 0.5 | G27: @ | H27: 12m | R27: 7 | S27: Lindsey, Jeff | U27: 540.3 | V27: 676 | W27: 864 | X27: 2080.3 | Z27: 0
D28: Estes, Robbie | F28: 4 | G28: @ | H28: 12m | R28: 8 | S28: Estes, Robbie | U28: 645.5 | V28: 535.1 | W28: 818.8 | X28: 1999.4 | Z28: 0
D29: Budzynski, Mark | F29: 2 | G29: @ | H29: 11.25m | R29: 9 | S29: Budzynski, Mark | U29: 786.7 | V29: 527.1 | W29: 591.6 | X29: 1905.4 | Z29: -1
D30: Wenzel, Norman | F30: 4 | G30: @ | H30: 13m | R30: 10 | S30: Wenzel, Norman | U30: 474.6 | V30: 255.6 | W30: 991.4 | X30: 1721.6 | Z30: 1
Z31: =IFERROR(R31-#REF!,"") -> 

Sheet Standards
C1: Overall multiple | E1: =Calculator!T11 -> 1500 | G1: System | I1: SOF | J1: JOF | M1: Multiplier | P1: Method | R1: Year | X1: Rates | Y1: sof adj | Z1: jof adj
C2: Growth rate | E2: =Calculator!T5 -> 1.6 | G2: 1000 | I2: 48 | J2: 0.2 | M2: =10^(LOG(E1)/E2) -> 96.6177761 | P2: Standard1 | R2: 2011 | X2: 1 | Y2: -48 | Z2: -0.15 | AF2: adj raw score
G3: 1500 | P3: Standard2 | R3: 2012 | X3: 1.25 | Y3: -42 | Z3: -0.1 | AF3: =VLOOKUP(Calculator!$D$4,Standards!$D$7:$J$39,7,FALSE) -> 0 | AG3: =VLOOKUP(Calculator!$D$4,Standards!$D$7:$J$39,7,FALSE) -> 0
P4: Records | R4: 2013 | X4: 1.5 | Y4: -36 | Z4: -0.05
P5: TopScore | X5: 1.6 | Y5: -30 | Z5: 0 | AF5: =IF(Calculator!F5<=Calculator!J$3,0,Calculator!F5-Calculator!J$3) -> 60 | AG5: =IF(OR(Calculator!D$4="Boys 1",Calculator!D$4="Girls 1"),"n/a",IF(Calculator!H5<=Calculator!H$5*Calculator!L$3,0,Calculator!H5-Calculator!H$5*Calculator!L$3)) -> 128.8
B6: DivisionNames | E6: S | F6: T | G6: J | H6: SOF | I6: adj | L6: Standard 1 | P6: Records | T6: TopScore | V6: avg | X6: 1.75 | Y6: -24 | Z6: 0.05 | AB6: Standard 2
B7: B1 | D7: Boys 1 | E7: 73 | F7: 4000 | G7: n/a | H7: =$I$2-I7 -> 30 | I7: 18 | L7: 81 | M7: 4090 | N7: n/a | P7: 81 | Q7: 4090 | R7: n/a | T7: 79.67 | U7: 2333 | V7: n/a | X7: 2 | Y7: -18 | Z7: 0.1 | AB7: 73 | AC7: 4000 | AD7: n/a | AF7: =IF(Calculator!F7<=Calculator!J$3,0,Calculator!F7-Calculator!J$3) -> 50.5 | AG7: =IF(OR(Calculator!D$4="Boys 1",Calculator!D$4="Girls 1"),"n/a",IF(Calculator!H7<=Calculator!H$5*Calculator!L$3,0,Calculator!H7-Calculator!H$5*Calculator!L$3)) -> 125.8
B8: B2 | D8: Boys 2 | E8: 94 | F8: 7000 | G8: 129 | H8: =$I$2-I8 -> 42 | I8: 6 | L8: 104 | M8: 7870 | N8: 143 | P8: 104 | Q8: 7870 | R8: 143 | T8: 100.67 | U8: 4410 | V8: 138 | Y8: -12 | Z8: 0.15 | AB8: 94 | AC8: 7000 | AD8: 129 | AF8: =IF(Calculator!F8<=Calculator!J$3,0,Calculator!F8-Calculator!J$3) -> 50 | AG8: =IF(OR(Calculator!D$4="Boys 1",Calculator!D$4="Girls 1"),"n/a",IF(Calculator!H8<=Calculator!H$5*Calculator!L$3,0,Calculator!H8-Calculator!H$5*Calculator!L$3)) -> 122.8
B9: B3 | D9: Boys 3 | E9: 105 | F9: 9000 | G9: 172 | H9: 48 | I9: 0 | L9: 117 | M9: 9000 | N9: 191 | P9: 117 | Q9: 10430 | R9: 191 | T9: 111.5 | U9: 6940 | V9: 186 | Y9: -6 | Z9: 0.2 | AB9: 105 | AC9: 9000 | AD9: 172 | AF9: =IF(Calculator!F9<=Calculator!J$3,0,Calculator!F9-Calculator!J$3) -> 45 | AG9: =IF(OR(Calculator!D$4="Boys 1",Calculator!D$4="Girls 1"),"n/a",IF(Calculator!H9<=Calculator!H$5*Calculator!L$3,0,Calculator!H9-Calculator!H$5*Calculator!L$3)) -> 131.8
B10: G1 | D10: Girls 1 | E10: 72 | F10: 5000 | G10: n/a | H10: 30 | I10: 18 | L10: 80 | M10: 5340 | N10: n/a | P10: 80 | Q10: 5340 | R10: n/a | T10: 68.17 | U10: 3360 | V10: n/a | Y10: 0 | Z10: 0.25 | AB10: 72 | AC10: 5000 | AD10: n/a | AF10: =IF(Calculator!F10<=Calculator!J$3,0,Calculator!F10-Calculator!J$3) -> 55.5 | AG10: =IF(OR(Calculator!D$4="Boys 1",Calculator!D$4="Girls 1"),"n/a",IF(Calculator!H10<=Calculator!H$5*Calculator!L$3,0,Calculator!H10-Calculator!H$5*Calculator!L$3)) -> 121.8
B11: G2 | D11: Girls 2 | E11: 86 | F11: 6000 | G11: 108 | H11: 36 | I11: 12 | L11: 93 | M11: 6790 | N11: 120 | P11: 95 | Q11: 6790 | R11: 120 | T11: 91.67 | U11: 7215 | V11: 104.5 | Y11: 6 | AB11: 86 | AC11: 6000 | AD11: 108 | AF11: =IF(Calculator!F11<=Calculator!J$3,0,Calculator!F11-Calculator!J$3) -> 52 | AG11: =IF(OR(Calculator!D$4="Boys 1",Calculator!D$4="Girls 1"),"n/a",IF(Calculator!H11<=Calculator!H$5*Calculator!L$3,0,Calculator!H11-Calculator!H$5*Calculator!L$3)) -> 108.8
B12: G3 | D12: Girls 3 | E12: 90 | F12: 7000 | G12: 139 | H12: 42 | I12: 6 | L12: 100 | M12: 8000 | N12: 154 | P12: 100 | Q12: 9230 | R12: 154 | T12: 101.25 | U12: 9580 | V12: 127 | Y12: 12 | AB12: 90 | AC12: 7000 | AD12: 139 | AF12: =IF(Calculator!F12<=Calculator!J$3,0,Calculator!F12-Calculator!J$3) -> 44 | AG12: =IF(OR(Calculator!D$4="Boys 1",Calculator!D$4="Girls 1"),"n/a",IF(Calculator!H12<=Calculator!H$5*Calculator!L$3,0,Calculator!H12-Calculator!H$5*Calculator!L$3)) -> 107.8
B13: M1 | D13: Men 1 | E13: 109 | F13: 9000 | G13: 188 | H13: 48 | I13: 0 | L13: 121 | M13: 8000 | N13: 209 | P13: 121 | Q13: 11070 | R13: 209 | T13: 122 | U13: 9113 | V13: 203.3 | Y13: 18 | AB13: 109 | AC13: 9000 | AD13: 188 | AF13: =IF(Calculator!F13<=Calculator!J$3,0,Calculator!F13-Calculator!J$3) -> 48.5 | AG13: =IF(OR(Calculator!D$4="Boys 1",Calculator!D$4="Girls 1"),"n/a",IF(Calculator!H13<=Calculator!H$5*Calculator!L$3,0,Calculator!H13-Calculator!H$5*Calculator!L$3)) -> 94.8
B14: M2 | D14: Men 2 | E14: 110 | F14: 9000 | G14: 194 | H14: 48 | I14: 0 | L14: 122 | M14: 8000 | N14: 216 | P14: 122 | Q14: 12090 | R14: 216 | T14: 121.5 | U14: 5653 | V14: 185 | Y14: 24 | AB14: 110 | AC14: 9000 | AD14: 194 | AF14: =IF(Calculator!F14<=Calculator!J$3,0,Calculator!F14-Calculator!J$3) -> 52 | AG14: =IF(OR(Calculator!D$4="Boys 1",Calculator!D$4="Girls 1"),"n/a",IF(Calculator!H14<=Calculator!H$5*Calculator!L$3,0,Calculator!H14-Calculator!H$5*Calculator!L$3)) -> 90.8
B15: M3 | D15: Men 3 | E15: 104 | F15: 7000 | G15: 178 | H15: 42 | I15: 6 | L15: 115.25 | M15: 7000 | N15: 198 | P15: 115.25 | Q15: 12070 | R15: 198 | T15: 111 | U15: 7270 | V15: 175.5 | Y15: 30 | AB15: 104 | AC15: 7000 | AD15: 178 | AF15: =IF(Calculator!F15<=Calculator!J$3,0,Calculator!F15-Calculator!J$3) -> 56 | AG15: =IF(OR(Calculator!D$4="Boys 1",Calculator!D$4="Girls 1"),"n/a",IF(Calculator!H15<=Calculator!H$5*Calculator!L$3,0,Calculator!H15-Calculator!H$5*Calculator!L$3)) -> 69.8
B16: M4 | D16: Men 4 | E16: 102 | F16: 5500 | G16: 161 | H16: 42 | I16: 6 | L16: 112 | M16: 6000 | N16: 179 | P16: 113 | Q16: 10420 | R16: 179 | T16: 112.17 | U16: 6185 | V16: 172.3 | Y16: 36 | AB16: 102 | AC16: 5500 | AD16: 161 | AF16: =IF(Calculator!F16<=Calculator!J$3,0,Calculator!F16-Calculator!J$3) -> 46 | AG16: =IF(OR(Calculator!D$4="Boys 1",Calculator!D$4="Girls 1"),"n/a",IF(Calculator!H16<=Calculator!H$5*Calculator!L$3,0,Calculator!H16-Calculator!H$5*Calculator!L$3)) -> 105.8
B17: M5 | D17: Men 5 | E17: 100 | F17: 5000 | G17: 140 | H17: 42 | I17: 6 | L17: 111 | M17: 5490 | N17: 156 | P17: 111 | Q17: 5490 | R17: 156 | T17: 110.5 | U17: 4413 | V17: 155.3 | Y17: 42 | AB17: 100 | AC17: 5000 | AD17: 140
B18: M6 | D18: Men 6 | E18: 94 | F18: 3000 | G18: 116 | H18: 42 | I18: 6 | L18: 104.5 | M18: 3940 | N18: 129 | P18: 104.5 | Q18: 3940 | R18: 129 | T18: 104.75 | U18: 3015 | V18: 122.7 | Y18: 48 | AB18: 94 | AC18: 3000 | AD18: 116
B19: M7 | D19: Men 7 | E19: 90 | F19: 2500 | G19: 101 | H19: 36 | I19: 12 | L19: 95 | M19: 3750 | N19: 112 | P19: 99.5 | Q19: 3750 | R19: 112 | T19: 100.83 | U19: 3076 | V19: 86.5 | AB19: 90 | AC19: 2500 | AD19: 101
B20: M8 | D20: Men 8 | E20: 79 | F20: 2000 | G20: 85 | H20: 30 | I20: 18 | L20: 88.25 | M20: 2450 | N20: 94 | P20: 88.25 | Q20: 2450 | R20: 94 | T20: 86.17 | U20: 1907 | V20: 81.4 | AB20: 79 | AC20: 2000 | AD20: 85
B21: M9 | D21: Men 9 | E21: 73 | F21: 1500 | G21: 79 | H21: 30 | I21: 18 | L21: 81.5 | M21: 1740 | N21: 72 | P21: 81.5 | Q21: 1740 | R21: 88 | T21: 86.5 | U21: 1872 | V21: 84.7 | AB21: 73 | AC21: 1500 | AD21: 79
B22: M10 | D22: Men 10 | E22: 66 | F22: 1100 | G22: 42 | H22: 30 | I22: 18 | L22: 73.5 | M22: 1600 | N22: 47 | P22: 73.5 | Q22: 1600 | R22: 47 | T22: 62.33 | U22: 891 | V22: 45.3 | AB22: 66 | AC22: 1100 | AD22: 42
B23: M11 | D23: Men 11 | E23: 34 | F23: 900 | G23: 20 | H23: 36 | I23: 12 | L23: 40 | M23: 600 | N23: 34 | P23: 38 | Q23: 1050 | R23: 22 | T23: 36.1 | U23: 1197 | V23: 20.9 | AB23: 34 | AC23: 900 | AD23: 20
B24: W1 | D24: Women 1 | E24: 98 | F24: 7000 | G24: 140 | H24: 42 | I24: 6 | L24: 109 | M24: 7000 | N24: 155 | P24: 109 | Q24: 8930 | R24: 155 | T24: 103.5 | U24: 5625 | V24: 173 | AB24: 98 | AC24: 7000 | AD24: 140
B25: W2 | D25: Women 2 | E25: 100 | F25: 7000 | G25: 142 | H25: 42 | I25: 6 | L25: 111 | M25: 7000 | N25: 158 | P25: 111 | Q25: 8990 | R25: 158 | T25: 97.83 | U25: 8890 | V25: 125 | AB25: 100 | AC25: 7000 | AD25: 142
B26: W3 | D26: Women 3 | E26: 95 | F26: 6000 | G26: 140 | H26: 42 | I26: 6 | L26: 105 | M26: 6450 | N26: 155 | P26: 105 | Q26: 6450 | R26: 155 | T26: 105.67 | U26: 4585 | V26: 139 | AB26: 95 | AC26: 6000 | AD26: 140
B27: W4 | D27: Women 4 | E27: 90 | F27: 5500 | G27: 110 | H27: 42 | I27: 6 | L27: 100.5 | M27: 5600 | N27: 122 | P27: 100.5 | Q27: 5600 | R27: 122 | T27: 98.5 | U27: 4545 | V27: 103 | AB27: 90 | AC27: 5500 | AD27: 110
B28: W5 | D28: Women 5 | E28: 83 | F28: 4000 | G28: 96 | H28: 36 | I28: 12 | L28: 92 | M28: 5060 | N28: 107 | P28: 92 | Q28: 5060 | R28: 107 | T28: 88.75 | U28: 3380 | V28: 82.7 | AB28: 83 | AC28: 4000 | AD28: 96
B29: W6 | D29: Women 6 | E29: 80 | F29: 3000 | G29: 86 | H29: 36 | I29: 12 | L29: 88 | M29: 3780 | N29: 84 | P29: 89 | Q29: 3780 | R29: 95 | T29: 88.25 | U29: 4158 | V29: 87.4 | AB29: 80 | AC29: 3000 | AD29: 86
B30: W7 | D30: Women 7 | E30: 72 | F30: 2500 | G30: 62 | H30: 30 | I30: 18 | L30: 80 | M30: 3330 | N30: 69 | P30: 80 | Q30: 3330 | R30: 69 | T30: 72.75 | U30: 1857 | V30: 59 | AB30: 72 | AC30: 2500 | AD30: 62
B31: W8 | D31: Women 8 | E31: 68 | F31: 2000 | G31: 51 | H31: 30 | I31: 18 | L31: 75.5 | M31: 2270 | N31: 57 | P31: 75.5 | Q31: 2270 | R31: 57 | T31: 64.5 | U31: 180 | V31: 0 | AB31: 68 | AC31: 2000 | AD31: 51
B32: W9 | D32: Women 9 | E32: 59 | F32: 1500 | G32: 40 | H32: 24 | I32: 24 | L32: 65.5 | M32: 1670 | N32: 45 | P32: 65.5 | Q32: 1670 | R32: 45 | T32: 59.72 | U32: 1045 | V32: 0 | AB32: 59 | AC32: 1500 | AD32: 40
B33: W10 | D33: Women 10 | E33: 50 | F33: 1000 | G33: 20 | H33: 24 | I33: 24 | L33: 56 | M33: 1220 | N33: 32 | P33: 56 | Q33: 1220 | R33: 22 | T33: 37.05 | U33: 1197 | V33: 0 | AB33: 50 | AC33: 1000 | AD33: 20
B34: W11 | D34: Women 11 | E34: 36 | F34: 200 | G34: 20 | H34: 24 | I34: 24 | L34: 40 | M34: 600 | N34: 32 | P34: 40 | Q34: 200 | R34: 22 | T34: 0 | U34: 0 | V34: 0 | AB34: 36 | AC34: 200 | AD34: 20
B35: OM | D35: Open Men | E35: 121 | F35: 12090 | G35: 247 | H35: 48 | I35: 0 | L35: 122 | M35: 10000 | N35: 247 | P35: 122 | Q35: 12090 | R35: 247 | T35: 122 | U35: 11250 | V35: 238.5 | AB35: 121 | AC35: 12090 | AD35: 247
B36: OW | D36: Open Women | E36: 111 | F36: 9230 | G36: 176 | H36: 42 | I36: 6 | L36: 111 | M36: 8990 | N36: 176 | P36: 111 | Q36: 9230 | R36: 176 | T36: 111.25 | U36: 9580 | V36: 173 | AB36: 111 | AC36: 9230 | AD36: 176
B37: MM | D37: Masters Men | E37: 115.25 | F37: 11570 | G37: 215 | H37: 42 | I37: 6 | L37: 115.25 | M37: 9000 | N37: 215 | P37: 115.25 | Q37: 11570 | R37: 215 | T37: 115.25 | U37: 7270 | V37: 207.3 | AB37: 115.25 | AC37: 11570 | AD37: 215

Sheet Records
A1: Records | D1: Jan 4, 2013
A3: B1 | I3: G1 | P3: Records condensed
A4: Slalom | C4: =D4+HLOOKUP(F4,buoyCount,2,0)-6+IF(COUNTIF(SpdOnly,F4)=1,0,HLOOKUP(A3,countAdj,2,0)) -> 81 | D4: 3 | E4: @ | F4: 12 | I4: Slalom | K4: =L4+HLOOKUP(N4,buoyCount,2,0)-6+IF(COUNTIF(SpdOnly,N4)=1,0,HLOOKUP(I3,countAdj,2,0)) -> 80 | L4: 2 | M4: @ | N4: 12 | P4: B1 | Q4: =C4 -> 81 | R4: =C5 -> 4090 | S4: n/a
A5: Tricks | C5: 4090 | I5: Tricks | K5: 5340 | P5: B2 | Q5: =C8 -> 104 | R5: =C9 -> 7870 | S5: =C10 -> 143
P6: B3 | Q6: =C13 -> 117 | R6: =C14 -> 10430 | S6: =C15 -> 191
A7: B2 | I7: G2 | P7: G1 | Q7: =K4 -> 80 | R7: =K5 -> 5340 | S7: n/a
A8: Slalom | C8: =D8+HLOOKUP(F8,buoyCount,2,0)-6+IF(COUNTIF(SpdOnly,F8)=1,0,HLOOKUP(A7,countAdj,2,0)) -> 104 | D8: 2 | E8: @ | F8: 10.75 | I8: Slalom | K8: =L8+HLOOKUP(N8,buoyCount,2,0)-6+IF(COUNTIF(SpdOnly,N8)=1,0,HLOOKUP(I7,countAdj,2,0)) -> 95 | L8: 5 | M8: @ | N8: 11.25 | P8: G2 | Q8: =K8 -> 95 | R8: =K9 -> 6790 | S8: =K10 -> 120
A9: Tricks | C9: 7870 | I9: Tricks | K9: 6790 | P9: G3 | Q9: =K13 -> 100 | R9: =K14 -> 9230 | S9: =K15 -> 154
A10: Jump | C10: 143 | E10: 43.5 | I10: Jump | K10: 120 | P10: M1 | Q10: =C23 -> 121 | R10: =C24 -> 11070 | S10: =C25 -> 209
P11: M2 | Q11: =C28 -> 122 | R11: =C29 -> 12090 | S11: =C30 -> 216
A12: B3 | I12: G3 | P12: M3 | Q12: =C38 -> 115.25 | R12: =C39 -> 12070 | S12: =C40 -> 198
A13: Slalom | C13: =D13+HLOOKUP(F13,buoyCount,2,0)-6+IF(COUNTIF(SpdOnly,F13)=1,0,HLOOKUP(A12,countAdj,2,0)) -> 117 | D13: 3 | E13: @ | F13: 10.25 | I13: Slalom | K13: =L13+HLOOKUP(N13,buoyCount,2,0)-6+IF(COUNTIF(SpdOnly,N13)=1,0,HLOOKUP(I12,countAdj,2,0)) -> 100 | L13: 4 | M13: @ | N13: 11.25 | P13: M4 | Q13: =C43 -> 113 | R13: =C44 -> 10420 | S13: =C45 -> 179
A14: Tricks | C14: 10430 | I14: Tricks | K14: 9230 | P14: M5 | Q14: =C48 -> 111 | R14: =C49 -> 5490 | S14: =C50 -> 156
A15: Jump | C15: 191 | I15: Jump | K15: 154 | P15: M6 | Q15: =C53 -> 104.5 | R15: =C54 -> 3940 | S15: =C55 -> 129
P16: M7 | Q16: =C58 -> 99.5 | R16: =C59 -> 3750 | S16: =C60 -> 112
A17: OM | I17: OW | P17: M8 | Q17: =C63 -> 88.25 | R17: =C64 -> 2450 | S17: =C65 -> 94
A18: Slalom | C18: =D18+HLOOKUP(F18,buoyCount,2,0)-6+IF(COUNTIF(SpdOnly,F18)=1,0,HLOOKUP(A17,countAdj,2,0)) -> 122 | D18: 2 | E18: @ | F18: 9.75 | I18: Slalom | K18: =L18+HLOOKUP(N18,buoyCount,2,0)-6+IF(COUNTIF(SpdOnly,N18)=1,0,HLOOKUP(I17,countAdj,2,0)) -> 111 | L18: 3 | M18: @ | N18: 10.25 | P18: M9 | Q18: =C68 -> 81.5 | R18: =C69 -> 1740 | S18: =C70 -> 88
A19: Tricks | C19: 12090 | I19: Tricks | K19: 9230 | P19: M10 | Q19: =C73 -> 73.5 | R19: =C74 -> 1600 | S19: =C75 -> 47
A20: Jump | C20: 247 | E20: 75.2 | I20: Jump | K20: 176 | N20: 53.6 | P20: M11 | Q20: =C78 -> 38 | R20: =C79 -> 1050 | S20: =C80 -> 22
P21: W1 | Q21: =K23 -> 109 | R21: =K24 -> 8930 | S21: =K25 -> 155
A22: M1 | I22: W1 | P22: W2 | Q22: =K28 -> 111 | R22: =K29 -> 8990 | S22: =K30 -> 158
A23: Slalom | C23: =D23+HLOOKUP(F23,buoyCount,2,0)-6+IF(COUNTIF(SpdOnly,F23)=1,0,HLOOKUP(A22,countAdj,2,0)) -> 121 | D23: 1 | E23: @ | F23: 9.75 | I23: Slalom | K23: =L23+HLOOKUP(N23,buoyCount,2,0)-6+IF(COUNTIF(SpdOnly,N23)=1,0,HLOOKUP(I22,countAdj,2,0)) -> 109 | L23: 1 | M23: @ | N23: 10.25 | P23: W3 | Q23: =K38 -> 105 | R23: =K39 -> 6450 | S23: =K40 -> 155
A24: Trick | C24: 11070 | I24: Tricks | K24: 8930 | P24: W4 | Q24: =K43 -> 100.5 | R24: =K44 -> 5600 | S24: =K45 -> 122
A25: Jump | C25: 209 | E25: 63.7 | I25: Jump | K25: 155 | P25: W5 | Q25: =K48 -> 92 | R25: =K49 -> 5060 | S25: =K50 -> 107
P26: W6 | Q26: =K53 -> 89 | R26: =K54 -> 3780 | S26: =K55 -> 95
A27: M2 | I27: W2 | P27: W7 | Q27: =K58 -> 80 | R27: =K59 -> 3330 | S27: =K60 -> 69
A28: Slalom | C28: =D28+HLOOKUP(F28,buoyCount,2,0)-6+IF(COUNTIF(SpdOnly,F28)=1,0,HLOOKUP(A27,countAdj,2,0)) -> 122 | D28: 2 | E28: @ | F28: 9.75 | I28: Slalom | K28: =L28+HLOOKUP(N28,buoyCount,2,0)-6+IF(COUNTIF(SpdOnly,N28)=1,0,HLOOKUP(I27,countAdj,2,0)) -> 111 | L28: 3 | M28: @ | N28: 10.25 | P28: W8 | Q28: =K63 -> 75.5 | R28: =K64 -> 2270 | S28: =K65 -> 57
A29: Tricks | C29: 12090 | I29: Tricks | K29: 8990 | P29: W9 | Q29: =K68 -> 65.5 | R29: =K69 -> 1670 | S29: =K70 -> 45
A30: Jump | C30: 216 | I30: Jump | K30: 158 | P30: W10 | Q30: =K73 -> 56 | R30: =K74 -> 1220 | S30: =K75 -> 0
P31: W11 | Q31: =K78 -> 40 | R31: =K79 -> 200 | S31: =K80 -> 0
A32: MM | I32: MW | P32: OM | Q32: =C18 -> 122 | R32: =C19 -> 12090 | S32: =C20 -> 247
A33: Slalom | C33: =D33+HLOOKUP(F33,buoyCount,2,0)-6+IF(COUNTIF(SpdOnly,F33)=1,0,HLOOKUP(A32,countAdj,2,0)) -> 115.25 | D33: 1.25 | E33: @ | F33: 9.75 | P33: OW | Q33: =K18 -> 111 | R33: =K19 -> 9230 | S33: =K20 -> 176
A34: Tricks | C34: 11570 | P34: MM | Q34: =C33 -> 115.25 | R34: =C34 -> 11570 | S34: =C35 -> 215
A35: Jump | C35: 215 | E35: 65.5
A37: M3 | I37: W3
A38: Slalom | C38: =D38+HLOOKUP(F38,buoyCount,2,0)-6+IF(COUNTIF(SpdOnly,F38)=1,0,HLOOKUP(A37,countAdj,2,0)) -> 115.25 | D38: 1.25 | E38: @ | F38: 9.75 | I38: Slalom | K38: =L38+HLOOKUP(N38,buoyCount,2,0)-6+IF(COUNTIF(SpdOnly,N38)=1,0,HLOOKUP(I37,countAdj,2,0)) -> 105 | L38: 3 | M38: @ | N38: 10.75
A39: Trick | C39: 12070 | I39: Tricks | K39: 6450
A40: Jump | C40: 198 | E40: 60.5 | I40: Jump | K40: 155
A42: M4 | I42: W4
A43: Slalom | C43: =D43+HLOOKUP(F43,buoyCount,2,0)-6+IF(COUNTIF(SpdOnly,F43)=1,0,HLOOKUP(A42,countAdj,2,0)) -> 113 | D43: 5 | E43: @ | F43: 10.25 | I43: Slalom | K43: =L43+HLOOKUP(N43,buoyCount,2,0)-6+IF(COUNTIF(SpdOnly,N43)=1,0,HLOOKUP(I42,countAdj,2,0)) -> 100.5 | L43: 4.5 | M43: @ | N43: 11.25
A44: Trick | C44: 10420 | I44: Tricks | K44: 5600
A45: Jump | C45: 179 | E45: 54.5 | I45: Jump | K45: 122
A47: M5 | I47: W5
A48: Slalom | C48: =D48+HLOOKUP(F48,buoyCount,2,0)-6+IF(COUNTIF(SpdOnly,F48)=1,0,HLOOKUP(A47,countAdj,2,0)) -> 111 | D48: 3 | E48: @ | F48: 10.25 | I48: Slalom | K48: =L48+HLOOKUP(N48,buoyCount,2,0)-6+IF(COUNTIF(SpdOnly,N48)=1,0,HLOOKUP(I47,countAdj,2,0)) -> 92 | L48: 2 | M48: @ | N48: 11.25
A49: Tricks | C49: 5490 | I49: Tricks | K49: 5060
A50: Jump | C50: 156 | I50: Jump | K50: 107
A52: M6 | I52: W6
A53: Slalom | C53: =D53+HLOOKUP(F53,buoyCount,2,0)-6+IF(COUNTIF(SpdOnly,F53)=1,0,HLOOKUP(A52,countAdj,2,0)) -> 104.5 | D53: 2.5 | E53: @ | F53: 10.75 | I53: Slalom | K53: =L53+HLOOKUP(N53,buoyCount,2,0)-6+IF(COUNTIF(SpdOnly,N53)=1,0,HLOOKUP(I52,countAdj,2,0)) -> 89 | L53: 5 | M53: @ | N53: 12
A54: Tricks | C54: 3940 | I54: Tricks | K54: 3780
A55: Jump | C55: 129 | E55: 39.4 | I55: Jump | K55: 95
A57: M7 | I57: W7
A58: Slalom | C58: =D58+HLOOKUP(F58,buoyCount,2,0)-6+IF(COUNTIF(SpdOnly,F58)=1,0,HLOOKUP(A57,countAdj,2,0)) -> 99.5 | D58: 3.5 | E58: @ | F58: 10.75 | I58: Slalom | K58: =L58+HLOOKUP(N58,buoyCount,2,0)-6+IF(COUNTIF(SpdOnly,N58)=1,0,HLOOKUP(I57,countAdj,2,0)) -> 80 | L58: 2 | M58: @ | N58: 12
A59: Tricks | C59: 3750 | I59: Tricks | K59: 3330
A60: Jump | C60: 112 | I60: Jump | K60: 69
A62: M8 | I62: W8
A63: Slalom | C63: =D63+HLOOKUP(F63,buoyCount,2,0)-6+IF(COUNTIF(SpdOnly,F63)=1,0,HLOOKUP(A62,countAdj,2,0)) -> 88.25 | D63: 4.25 | E63: @ | F63: 11.25 | I63: Slalom | K63: =L63+HLOOKUP(N63,buoyCount,2,0)-6+IF(COUNTIF(SpdOnly,N63)=1,0,HLOOKUP(I62,countAdj,2,0)) -> 75.5 | L63: 3.5 | M63: @ | N63: 13
A64: Tricks | C64: 2450 | I64: Tricks | K64: 2270
A65: Jump | C65: 94 | I65: Jump | K65: 57
A67: M9 | I67: W9
A68: Slalom | C68: =D68+HLOOKUP(F68,buoyCount,2,0)-6+IF(COUNTIF(SpdOnly,F68)=1,0,HLOOKUP(A67,countAdj,2,0)) -> 81.5 | D68: 3.5 | E68: @ | F68: 12 | I68: Slalom | K68: =L68+HLOOKUP(N68,buoyCount,2,0)-6+IF(COUNTIF(SpdOnly,N68)=1,0,HLOOKUP(I67,countAdj,2,0)) -> 65.5 | L68: 5.5 | M68: @ | N68: 14.25
A69: Tricks | C69: 1740 | I69: Tricks | K69: 1670
A70: Jump | C70: 88 | E70: 26.8 | I70: Jump | K70: 45
A72: M10 | I72: W10
A73: Slalom | C73: =D73+HLOOKUP(F73,buoyCount,2,0)-6+IF(COUNTIF(SpdOnly,F73)=1,0,HLOOKUP(A72,countAdj,2,0)) -> 73.5 | D73: 1.5 | E73: @ | F73: 13 | I73: Slalom | K73: =L73+HLOOKUP(N73,buoyCount,2,0)-6+IF(COUNTIF(SpdOnly,N73)=1,0,HLOOKUP(I72,countAdj,2,0)) -> 56 | L73: 2 | M73: @ | N73: 16
A74: Trick | C74: 1600 | I74: Tricks | K74: 1220
A75: Jump | C75: 47 | E75: 14.2 | I75: Jump
A77: M11 | I77: W11
A78: Slalom | C78: =D78+HLOOKUP(F78,buoyCount,2,0)-6+IF(COUNTIF(SpdOnly,F78)=1,0,HLOOKUP(A77,countAdj,2,0)) -> 38 | D78: 2 | E78: @ | F78: 43 | I78: Slalom | K78: =L78+HLOOKUP(N78,buoyCount,2,0)-6+IF(COUNTIF(SpdOnly,N78)=1,0,HLOOKUP(I77,countAdj,2,0)) -> 40 | L78: 4 | M78: @ | N78: 43
A79: Tricks | C79: 1050 | I79: Tricks | K79: 200
A80: Jump | C80: 22 | E80: 6.7 | I80: Jump

Sheet SlalomCalc
B2: Div | D2: Buoys | F2: Spd/Line | H2: Total | L2: Div | N2: Total | P2: Buoys | R2: Spd/Line
B3: M8 | D3: 4.25 | E3: @ | F3: 49 | H3: =IF(F3>F5,"error",D3+HLOOKUP(F3,buoyCount,2,0)-6+IF(COUNTIF(SpdOnly,F3)=1,0,HLOOKUP(B3,countAdj,2,0))) -> 52.25 | L3: W10 | N3: 89 | P3: =IF(MOD(N3,6)=0,6,MOD(N3,6)) -> 5 | Q3: @ | R3: =IF(N3>O5,HLOOKUP(IF(N3>O5,INT(N3/6)+IF(N3>O5,HLOOKUP(L3,countAdj,4,FALSE),0)+IF(P3<6,1,0),0),buoyOffset,2,FALSE) & "m",HLOOKUP(INT(N3/6)+IF(P3<6,1,0),buoyOffset,2,FALSE) & "k") -> 10.75m
D5: Max Spd | F5: =HLOOKUP(B3,countAdj,3,FALSE) -> 49 | L5: Max Spd Count | O5: =HLOOKUP(HLOOKUP(L3,countAdj,3,FALSE),buoyCount,2,FALSE) -> 48
A7: Offset | B7: 1 | C7: 2 | D7: 3 | E7: 4 | F7: 5 | G7: 6 | H7: 7 | I7: 8 | J7: 9 | K7: 10 | L7: 11 | M7: 12 | N7: 13 | O7: 14 | P7: 15 | Q7: 16 | R7: 17 | S7: 18 | T7: 19 | U7: 20 | V7: 21
A8: Spd/Line | B8: 25 | C8: 28 | D8: 31 | E8: 34 | F8: 37 | G8: 40 | H8: 43 | I8: 46 | J8: 49 | K8: 52 | L8: 55 | M8: 58 | N8: 18.25 | O8: 16 | P8: 14.25 | Q8: 13 | R8: 12 | S8: 11.25 | T8: 10.75 | U8: 10.25 | V8: 9.75
A9: Count | B9: 6 | C9: 12 | D9: 18 | E9: 24 | F9: 30 | G9: 36 | H9: 42 | I9: 48 | J9: 54 | K9: 60 | L9: 66 | M9: 72 | N9: 78 | O9: 84 | P9: 90 | Q9: 96 | R9: 102 | S9: 108 | T9: 114 | U9: 120 | V9: 126
A12: B1 | B12: B2 | C12: B3 | D12: G1 | E12: G2 | F12: G3 | G12: M1 | H12: M2 | I12: M3 | J12: M4 | K12: M5 | L12: M6 | M12: M7 | N12: M8 | O12: M9 | P12: M10 | Q12: M11 | R12: W1 | S12: W2 | T12: W3 | U12: W4 | V12: W5 | W12: W6 | X12: W7 | Y12: W8 | Z12: W9 | AA12: W10 | AB12: W11 | AC12: MM | AD12: OM | AE12: OW
A13: -18 | B13: -6 | C13: 0 | D13: -18 | E13: -12 | F13: -6 | G13: 0 | H13: 0 | I13: -6 | J13: -6 | K13: -6 | L13: -6 | M13: -12 | N13: -18 | O13: -18 | P13: -18 | Q13: -18 | R13: -6 | S13: -6 | T13: -6 | U13: -6 | V13: -12 | W13: -12 | X13: -18 | Y13: -18 | Z13: -24 | AA13: -24 | AB13: -24 | AC13: -6 | AD13: 0 | AE13: -6
A14: 49 | B14: 55 | C14: 58 | D14: 49 | E14: 52 | F14: 55 | G14: 58 | H14: 58 | I14: 55 | J14: 55 | K14: 55 | L14: 55 | M14: 52 | N14: 49 | O14: 49 | P14: 49 | Q14: 49 | R14: 55 | S14: 55 | T14: 55 | U14: 55 | V14: 52 | W14: 52 | X14: 49 | Y14: 49 | Z14: 46 | AA14: 46 | AB14: 46 | AC14: 55 | AD14: 58 | AE14: 55
A15: 3 | B15: 1 | C15: 0 | D15: 3 | E15: 2 | F15: 1 | G15: 0 | H15: 0 | I15: 1 | J15: 1 | K15: 1 | L15: 1 | M15: 2 | N15: 3 | O15: 3 | P15: 3 | Q15: 3 | R15: 1 | S15: 1 | T15: 1 | U15: 1 | V15: 2 | W15: 2 | X15: 3 | Y15: 3 | Z15: 4 | AA15: 4 | AB15: 4 | AC15: 1 | AD15: 0 | AE15: 1
A16: 90 buoy benchmark
A17: 11.25 | B17: 13 | C17: 14.25 | D17: 11.25 | E17: 12 | F17: 13 | G17: 14.25 | H17: 14.25 | I17: 13 | J17: 13 | K17: 13 | L17: 13 | M17: 12 | N17: 11.25 | O17: 11.25 | P17: 11.25 | Q17: 11.25 | R17: 13 | S17: 13 | T17: 13 | U17: 13 | V17: 12 | W17: 12 | X17: 11.25 | Y17: 11.25 | Z17: 10.75 | AA17: 10.75 | AB17: 10.75 | AC17: 13 | AD17: 14.25 | AE17: 13
B19: Buoys
B20: 0.25
B21: 0.5
B22: 1
B23: 1.25
B24: 1.5
B25: 2
B26: 2.25
B27: 2.5
B28: 3
B29: 3.25
B30: 3.5
B31: 4
B32: 4.25
B33: 4.5
B34: 5
B35: 5.25
B36: 5.5
B37: 6

Sheet NatsData13
A1: Skier | C1: S | D1: T | E1: J | F1: Div | G1: Slalom result | K1: Skier | M1: S nops | N1: T nops | O1: J nops | P1: NOPS
A2: Bryans, James | C2: 72.5 | D2: 1540 | F2: B1 | G2: 0.5 | H2: 49 | I2: 1300 | K2: Bryans, James | M2: 1341.8 | N2: 908.8 | P2: 2250.6
A3: Roberts, Edward | C3: 63 | D3: 1580 | F3: B1 | G3: 3 | H3: 49 | I3: 1600 | K3: Roberts, Edward | M3: 1165.8 | N3: 920.8 | P3: 2086.6
A4: Weber, Samuel | C4: 67.5 | D4: 1240 | F4: B1 | G4: 1.5 | H4: 49 | I4: 1425 | K4: Weber, Samuel | M4: 1249.1 | N4: 813.2 | P4: 2062.3
A5: Arnold, Zachary | C5: 63 | D5: 1060 | F5: B1 | G5: 3 | H5: 49 | I5: 1600 | K5: Arnold, Zachary | M5: 1165.8 | N5: 750.3 | P5: 1916.1
A6: Robbins, Evan | C6: 43.5 | D6: 1980 | F6: B1 | G6: 1.5 | H6: 46 | I6: 2300 | K6: Robbins, Evan | M6: 807.6 | N6: 1033.9 | P6: 1841.5
A7: Keller, Brody | C7: 68.5 | D7: 480 | F7: B1 | G7: 2.5 | H7: 49 | I7: 1425 | K7: Keller, Brody | M7: 1267.6 | N7: 499.8 | P7: 1767.4
A8: Panneton, Brian | C8: 68 | D8: 440 | F8: B1 | G8: 2 | H8: 49 | I8: 1425 | K8: Panneton, Brian | M8: 1258.4 | N8: 477.9 | P8: 1736.3
A9: Grubbs, Blaze | C9: 63 | D9: 280 | F9: B1 | G9: 3 | H9: 49 | I9: 1600 | K9: Grubbs, Blaze | M9: 1165.8 | N9: 379 | P9: 1544.8
A10: Hooten, Carter | C10: 32.5 | D10: 1610 | F10: B1 | G10: 2.5 | H10: 40 | I10: 2300 | K10: Hooten, Carter | M10: 607.9 | N10: 929.8 | P10: 1537.7
A11: Waltrip, Luke | C11: 39.5 | D11: 660 | F11: B1 | G11: 3.5 | H11: 43 | I11: 2300 | K11: Waltrip, Luke | M11: 734.7 | N11: 588.4 | P11: 1323.1
A12: Canepa, Ryan | C12: 103 | D12: 3630 | E12: 101 | F12: B2 | G12: 1 | H12: 55 | I12: 1075 | K12: Canepa, Ryan | M12: 1473.2 | N12: 1019.5 | O12: 1121 | P12: 3613.7
A13: Haines, Quinn | C13: 93 | D13: 3180 | E13: 129 | F13: B2 | G13: 3 | H13: 55 | I13: 1200 | K13: Haines, Quinn | M13: 1218 | N13: 954.4 | O13: 1379.1 | P13: 3551.5
A14: Fry, Colten | C14: 93 | D14: 810 | E14: 121 | F14: B2 | G14: 3 | H14: 55 | I14: 1200 | K14: Fry, Colten | M14: 1218 | N14: 482.3 | O14: 1307.7 | P14: 3008
A15: Stallings, Garrett | C15: 85.5 | D15: 4310 | E15: 69 | F15: B2 | G15: 1.5 | H15: 55 | I15: 1300 | K15: Stallings, Garrett | M15: 1041.5 | N15: 1110.7 | O15: 787.2 | P15: 2939.4
A16: Warner, Ryan | C16: 80 | D16: 3120 | E16: 89 | F16: B2 | G16: 2 | H16: 55 | I16: 1425 | K16: Warner, Ryan | M16: 920.3 | N16: 945.3 | O16: 1001.9 | P16: 2867.5
A17: Melnar, Dylan | C17: 86 | D17: 1630 | E17: 96 | F17: B2 | G17: 2 | H17: 55 | I17: 1300 | K17: Melnar, Dylan | M17: 1052.8 | N17: 683.7 | O17: 1072.1 | P17: 2808.6
A18: Stange, Griffin | C18: 90.5 | D18: 1670 | E18: 72 | F18: B2 | G18: 0.5 | H18: 55 | I18: 1200 | K18: Stange, Griffin | M18: 1157.7 | N18: 692 | O18: 821 | P18: 2670.7
A19: Fisher, Trenton | C19: 80 | D19: 3310 | E19: 66 | F19: B2 | G19: 2 | H19: 55 | I19: 1425 | K19: Fisher, Trenton | M19: 920.3 | N19: 973.6 | O19: 752.7 | P19: 2646.6
A20: Butterfield, Zachary | C20: 79.5 | D20: 2590 | E20: 59 | F20: B2 | G20: 1.5 | H20: 55 | I20: 1425 | K20: Butterfield, Zachary | M20: 909.6 | N20: 861.5 | O20: 669.3 | P20: 2440.4
A21: Fowler, Garnet | C21: 91 | D21: 450 | E21: 76 | F21: B2 | G21: 1 | H21: 55 | I21: 1200 | K21: Fowler, Garnet | M21: 1169.6 | N21: 359.7 | O21: 865.1 | P21: 2394.4
A22: Lang, Nicholas | C22: 97.5 | D22: 6780 | E22: 171 | F22: B3 | G22: 1.5 | H22: 58 | I22: 1200 | K22: Lang, Nicholas | M22: 848.8 | N22: 1191.3 | O22: 1286.7 | P22: 3326.8
A23: Garcia, Taylor | C23: 100 | D23: 4910 | E23: 174 | F23: B3 | G23: 4 | H23: 58 | I23: 1200 | K23: Garcia, Taylor | M23: 923.6 | N23: 1002.4 | O23: 1318.4 | P23: 3244.4
A24: Greenwood, Samuel | C24: 99 | D24: 4290 | E24: 171 | F24: B3 | G24: 3 | H24: 58 | I24: 1200 | K24: Greenwood, Samuel | M24: 893.1 | N24: 932.6 | O24: 1286.7 | P24: 3112.4
A25: Mechler, Dane | C25: 106.5 | D25: 3800 | E25: 138 | F25: B3 | G25: 4.5 | H25: 58 | I25: 1125 | K25: Mechler, Dane | M25: 1140.8 | N25: 874 | O25: 945.8 | P25: 2960.6
A26: Guyer, Corbin | C26: 98 | D26: 4600 | E26: 152 | F26: B3 | G26: 2 | H26: 58 | I26: 1200 | K26: Guyer, Corbin | M26: 863.3 | N26: 968 | O26: 1088.6 | P26: 2919.9
A27: DeVito, Christian | C27: 98 | D27: 4310 | E27: 146 | F27: B3 | G27: 2 | H27: 58 | I27: 1200 | K27: DeVito, Christian | M27: 863.3 | N27: 934.9 | O27: 1027 | P27: 2825.2
A28: Lindy, Taylor | C28: 99 | D28: 2080 | E28: 140 | F28: B3 | G28: 3 | H28: 58 | I28: 1200 | K28: Lindy, Taylor | M28: 893.1 | N28: 633.1 | O28: 966 | P28: 2492.2
A29: MacIntyre, Zachary | C29: 99 | D29: 4740 | E29: 104 | F29: B3 | G29: 3 | H29: 58 | I29: 1200 | K29: MacIntyre, Zachary | M29: 893.1 | N29: 983.7 | O29: 612.4 | P29: 2489.2
A30: Montgomery, Ryan | C30: 97 | D30: 2730 | E30: 106 | F30: B3 | G30: 1 | H30: 58 | I30: 1200 | K30: Montgomery, Ryan | M30: 834.3 | N30: 732.2 | O30: 631.4 | P30: 2197.9
A31: Kelley, Joshua | C31: 94 | D31: 1290 | E31: 127 | F31: B3 | G31: 4 | H31: 58 | I31: 1300 | K31: Kelley, Joshua | M31: 751.7 | N31: 490.3 | O31: 835.7 | P31: 2077.7
A32: Grathwohl, Allyson | C32: 51 | D32: 3180 | F32: G1 | G32: 3 | H32: 49 | I32: 2300 | K32: Grathwohl, Allyson | M32: 1018.5 | N32: 1217.2 | P32: 2235.7
A33: Hansen, Kennedy | C33: 66 | D33: 1630 | F33: G1 | G33: 6 | H33: 49 | I33: 1600 | K33: Hansen, Kennedy | M33: 1268.5 | N33: 929.8 | P33: 2198.3
A34: Janzig, Sophia | C34: 56 | D34: 1420 | F34: G1 | G34: 2 | H34: 49 | I34: 1825 | K34: Janzig, Sophia | M34: 1102.1 | N34: 879.6 | P34: 1981.7
A35: Boskus, Brooke | C35: 56 | D35: 1200 | F35: G1 | G35: 2 | H35: 49 | I35: 1825 | K35: Boskus, Brooke | M35: 1102.1 | N35: 821.9 | P35: 1924
A36: Drake, Alyssa | C36: 37 | D36: 960 | F36: G1 | G36: 1 | H36: 43 | I36: 2300 | K36: Drake, Alyssa | M36: 782.7 | N36: 751.2 | P36: 1533.9
A37: Jones, Alana | C37: 40 | D37: 660 | F37: G1 | G37: 4 | H37: 43 | I37: 2300 | K37: Jones, Alana | M37: 833.5 | N37: 645.9 | P37: 1479.4
A38: Krick, Olivia | C38: 39 | D38: 440 | F38: G1 | G38: 3 | H38: 43 | I38: 2300 | K38: Krick, Olivia | M38: 816.6 | N38: 548.5 | P38: 1365.1
A39: Hauser, Natalie | C39: 21 | D39: 380 | F39: G1 | G39: 3 | H39: 34 | I39: 2300 | K39: Hauser, Natalie | M39: 508.8 | N39: 517.1 | P39: 1025.9
A40: Baldwin, Brooke | C40: 91 | D40: 5770 | E40: 89 | F40: G2 | G40: 1 | H40: 52 | I40: 1125 | K40: Baldwin, Brooke | M40: 1439.5 | N40: 1375.6 | O40: 1166.1 | P40: 3981.2
A41: Gay, Anna | C41: 89 | D41: 5040 | E41: 82 | F41: G2 | G41: 5 | H41: 52 | I41: 1200 | K41: Gay, Anna | M41: 1380.1 | N41: 1280.1 | O41: 1084.9 | P41: 3745.1
A42: Grathwohl, Taylor | C42: 86 | D42: 4310 | E42: 83 | F42: G2 | G42: 2 | H42: 52 | I42: 1200 | K42: Grathwohl, Taylor | M42: 1293.3 | N42: 1177.8 | O42: 1096.7 | P42: 3567.8
A43: Baldwin, Kristen | C43: 79.5 | D43: 5070 | E43: 88 | F43: G2 | G43: 1.5 | H43: 52 | I43: 1300 | K43: Baldwin, Kristen | M43: 1114.3 | N43: 1284.1 | O43: 1154.7 | P43: 3553.1
A44: Morgan, Emma | C44: 80 | D44: 3020 | E44: 87 | F44: G2 | G44: 2 | H44: 52 | I44: 1300 | K44: Morgan, Emma | M44: 1127.6 | N44: 974.8 | O44: 1143.2 | P44: 3245.6
A45: Grathwohl, Bailey | C45: 73.5 | D45: 4250 | E45: 72 | F45: G2 | G45: 1.5 | H45: 52 | I45: 1425 | K45: Grathwohl, Bailey | M45: 960.4 | N45: 1169.1 | O45: 964.1 | P45: 3093.6
A46: Kosek, Tianna | C46: 85 | D46: 1850 | E46: 64 | F46: G2 | G46: 1 | H46: 52 | I46: 1200 | K46: Kosek, Tianna | M46: 1264.9 | N46: 751.1 | O46: 862.4 | P46: 2878.4
A47: Blair, Hayleigh | C47: 76 | D47: 2350 | E47: 66 | F47: G2 | G47: 4 | H47: 52 | I47: 1425 | K47: Blair, Hayleigh | M47: 1023.2 | N47: 853 | O47: 888.3 | P47: 2764.5
A48: Montgomery, Ashley | C48: 69 | D48: 2200 | E48: 75 | F48: G2 | G48: 3 | H48: 52 | I48: 1600 | K48: Montgomery, Ashley | M48: 852.1 | N48: 823.6 | O48: 1001 | P48: 2676.7
A49: Newman, Charlsey | C49: 75 | D49: 1290 | E49: 67 | F49: G2 | G49: 3 | H49: 52 | I49: 1425 | K49: Newman, Charlsey | M49: 997.8 | N49: 620 | O49: 901.2 | P49: 2519
A50: Lang, Erika | C50: 95 | D50: 8990 | E50: 124 | F50: G3 | G50: 5 | H50: 55 | I50: 1200 | K50: Lang, Erika | M50: 1234.9 | N50: 1500 | O50: 1179 | P50: 3913.9
A51: Horton, Ellie | C51: 93 | D51: 6250 | E51: 118 | F51: G3 | G51: 3 | H51: 55 | I51: 1200 | K51: Horton, Ellie | M51: 1139.5 | N51: 1215.3 | O51: 1114 | P51: 3468.8
A52: Grathwohl, Abbi | C52: 92 | D52: 4690 | E52: 116 | F52: G3 | G52: 2 | H52: 55 | I52: 1200 | K52: Grathwohl, Abbi | M52: 1093.9 | N52: 1029.1 | O52: 1092.3 | P52: 3215.3
A53: Butterfield, Krista | C53: 91 | D53: 4850 | E53: 100 | F53: G3 | G53: 1 | H53: 55 | I53: 1200 | K53: Butterfield, Krista | M53: 1049.8 | N53: 1049.3 | O53: 917.1 | P53: 3016.2
A54: Morgan, Jenna | C54: 88.5 | D54: 3820 | E54: 104 | F54: G3 | G54: 4.5 | H54: 55 | I54: 1300 | K54: Morgan, Jenna | M54: 945.3 | N54: 913.9 | O54: 961.1 | P54: 2820.3
A55: Morris, Jaye | C55: 87.5 | D55: 2610 | E55: 119 | F55: G3 | G55: 3.5 | H55: 55 | I55: 1300 | K55: Morris, Jaye | M55: 905.9 | N55: 733 | O55: 1124.9 | P55: 2763.8
A56: Warner, Kat | C56: 86.5 | D56: 4080 | E56: 100 | F56: G3 | G56: 2.5 | H56: 55 | I56: 1300 | K56: Warner, Kat | M56: 867.7 | N56: 949.4 | O56: 917.1 | P56: 2734.2
A57: Boskus, Julianna | C57: 88 | D57: 2160 | E57: 86 | F57: G3 | G57: 4 | H57: 55 | I57: 1300 | K57: Boskus, Julianna | M57: 925.4 | N57: 656.9 | O57: 761.5 | P57: 2343.8
A58: Daulton, Riley | C58: 76 | D58: 1980 | E58: 108 | F58: G3 | G58: 4 | H58: 55 | I58: 1600 | K58: Daulton, Riley | M58: 537.5 | N58: 624.6 | O58: 1005 | P58: 2167.1
A59: Forni, Jenae | C59: 81 | D59: 2310 | E59: 68 | F59: G3 | G59: 3 | H59: 55 | I59: 1425 | K59: Forni, Jenae | M59: 679.4 | N59: 683 | O59: 557.5 | P59: 1919.9
A60: Stevenson, Michael | C60: 104 | D60: 5640 | E60: 193 | F60: M1 | G60: 2 | H60: 58 | I60: 1125 | K60: Stevenson, Michael | M60: 1028.3 | N60: 1116.4 | O60: 1386.3 | P60: 3531
A61: Karber, Garrett | C61: 105 | D61: 3770 | E61: 172 | F61: M1 | G61: 3 | H61: 58 | I61: 1125 | K61: Karber, Garrett | M61: 1053 | N61: 935.8 | O61: 1234.2 | P61: 3223
A62: Phillips, Drew | C62: 101 | D62: 3600 | E62: 171 | F62: M1 | G62: 5 | H62: 58 | I62: 1200 | K62: Phillips, Drew | M62: 956.2 | N62: 917.1 | O62: 1226.9 | P62: 3100.2
A63: Morris, Robert | C63: 99 | D63: 4630 | E63: 142 | F63: M1 | G63: 3 | H63: 58 | I63: 1200 | K63: Morris, Robert | M63: 910 | N63: 1024 | O63: 1010.2 | P63: 2944.2
A64: Kachele, Zachary | C64: 96.5 | D64: 3320 | E64: 165 | F64: M1 | G64: 0.5 | H64: 58 | I64: 1200 | K64: Kachele, Zachary | M64: 854.2 | N64: 885.1 | O64: 1182.7 | P64: 2922
A65: Kulig, Paul | C65: 105.5 | D65: 1410 | E65: 159 | F65: M1 | G65: 3.5 | H65: 58 | I65: 1125 | K65: Kulig, Paul | M65: 1065.5 | N65: 608.3 | O65: 1138.2 | P65: 2812
A66: Zimmerman, Kyle | C66: 100 | D66: 2360 | E66: 143 | F66: M1 | G66: 4 | H66: 58 | I66: 1200 | K66: Zimmerman, Kyle | M66: 932.9 | N66: 762.2 | O66: 1017.8 | P66: 2712.9
A67: Hinkle, Ryan | C67: 96.5 | D67: 1620 | E67: 156 | F67: M1 | G67: 0.5 | H67: 58 | I67: 1200 | K67: Hinkle, Ryan | M67: 854.2 | N67: 646.4 | O67: 1115.9 | P67: 2616.5
A68: Cole, Randall | C68: 95.5 | D68: 2220 | E68: 135 | F68: M1 | G68: 5.5 | H68: 58 | I68: 1300 | K68: Cole, Randall | M68: 832.5 | N68: 742.1 | O68: 956.5 | P68: 2531.1
A69: Evatt, Hank | C69: 94.5 | D69: 2230 | E69: 134 | F69: M1 | G69: 4.5 | H69: 58 | I69: 1300 | K69: Evatt, Hank | M69: 811.1 | N69: 743.6 | O69: 948.8 | P69: 2503.5
A70: Barringer, Treece | C70: 101 | D70: 3430 | E70: 185 | F70: M2 | G70: 5 | H70: 58 | I70: 1200 | K70: Barringer, Treece | M70: 870.1 | N70: 820.4 | O70: 1234.8 | P70: 2925.3
A71: Sparks, Brian | C71: 102 | D71: 3430 | E71: 161 | F71: M2 | G71: 6 | H71: 58 | I71: 1200 | K71: Sparks, Brian | M71: 895 | N71: 820.4 | O71: 1031.4 | P71: 2746.8
A72: Mommer, Brett | C72: 87 | D72: 1840 | E72: 163 | F72: M2 | G72: 3 | H72: 58 | I72: 1425 | K72: Mommer, Brett | M72: 570.1 | N72: 608.8 | O72: 1048.3 | P72: 2227.2
A73: Kodiak, Cris | C73: 68 | D73: 2010 | E73: 121 | F73: M2 | G73: 2 | H73: 58 | I73: 2300 | K73: Kodiak, Cris | M73: 291.8 | N73: 635.1 | O73: 696.9 | P73: 1623.8
A74: Surdej, Jeff | C74: 97.5 | D74: 4150 | E74: 168 | F74: M3 | G74: 1.5 | H74: 55 | I74: 1125 | K74: Surdej, Jeff | M74: 788.6 | N74: 886.2 | O74: 1190.1 | P74: 2864.9
A75: Eller, Christophe | C75: 104 | D75: 1650 | E75: 164 | F75: M3 | G75: 2 | H75: 55 | I75: 1075 | K75: Eller, Christophe | M75: 1056.9 | N75: 562.4 | O75: 1149.6 | P75: 2768.9
A76: Hooten, Jody | C76: 92.5 | D76: 3100 | E76: 175 | F76: M3 | G76: 2.5 | H76: 55 | I76: 1200 | K76: Hooten, Jody | M76: 622.9 | N76: 767.5 | O76: 1261.4 | P76: 2651.8
A77: Nichols, Donald | C77: 99.5 | D77: 2340 | E77: 150 | F77: M3 | G77: 3.5 | H77: 55 | I77: 1125 | K77: Nichols, Donald | M77: 864.3 | N77: 668.1 | O77: 1009.7 | P77: 2542.1
A78: Bellefeuille, Scott | C78: 99 | D78: 1610 | E78: 123 | F78: M3 | G78: 3 | H78: 55 | I78: 1125 | K78: Bellefeuille, Scott | M78: 844.8 | N78: 555.6 | O78: 748.2 | P78: 2148.6
A79: Ripley, Ryan | C79: 77.5 | D79: 2420 | E79: 98 | F79: M3 | G79: 5.5 | H79: 55 | I79: 1600 | K79: Ripley, Ryan | M79: 291.8 | N79: 679.3 | O79: 518 | P79: 1489.1
A80: Combs, Jb | C80: 4 | D80: 740 | E80: 106 | F80: M3 | G80: 4 | H80: 25 | I80: 1825 | K80: Combs, Jb | M80: 32 | N80: 378.7 | O80: 590.2 | P80: 1000.9
A81: Kazmer, Keith | C81: 63 | D81: 2350 | E81: 57 | F81: M3 | G81: 3 | H81: 55 | I81: 2300 | K81: Kazmer, Keith | M81: 135.8 | N81: 669.5 | O81: 175.7 | P81: 981
A82: Whetsel, Kirby | C82: 92.5 | D82: 2310 | E82: 158 | F82: M4 | G82: 2.5 | H82: 55 | I82: 1200 | K82: Whetsel, Kirby | M82: 598.5 | N82: 697.8 | O82: 1233.1 | P82: 2529.4
A83: Newman, Thomas | C83: 92 | D83: 2570 | E83: 155 | F83: M4 | G83: 2 | H83: 55 | I83: 1200 | K83: Newman, Thomas | M83: 583.5 | N83: 736.6 | O83: 1196.1 | P83: 2516.2
A84: Grau, Mitch | C84: 87 | D84: 2220 | E84: 164 | F84: M4 | G84: 3 | H84: 55 | I84: 1300 | K84: Grau, Mitch | M84: 450.4 | N84: 683.9 | O84: 1308.1 | P84: 2442.4
A85: Haines, Hutch | C85: 97.5 | D85: 1010 | E85: 154 | F85: M4 | G85: 1.5 | H85: 55 | I85: 1125 | K85: Haines, Hutch | M85: 767.7 | N85: 458.4 | O85: 1183.8 | P85: 2409.9
A86: Snape, R Scott | C86: 94 | D86: 1140 | E86: 141 | F86: M4 | G86: 4 | H86: 55 | I86: 1200 | K86: Snape, R Scott | M86: 645.5 | N86: 487.4 | O86: 1026.8 | P86: 2159.7
A87: Webb, Greg | C87: 86 | D87: 1940 | E87: 140 | F87: M4 | G87: 2 | H87: 55 | I87: 1300 | K87: Webb, Greg | M87: 427.2 | N87: 638.6 | O87: 1015 | P87: 2080.8
A88: Lindsey, Jeff | C88: 90.5 | D88: 2170 | E88: 127 | F88: M4 | G88: 0.5 | H88: 55 | I88: 1200 | K88: Lindsey, Jeff | M88: 540.3 | N88: 676 | O88: 864 | P88: 2080.3
A89: Estes, Robbie | C89: 94 | D89: 1370 | E89: 123 | F89: M4 | G89: 4 | H89: 55 | I89: 1200 | K89: Estes, Robbie | M89: 645.5 | N89: 535.1 | O89: 818.8 | P89: 1999.4
A90: Budzynski, Mark | C90: 98 | D90: 1330 | E90: 102 | F90: M4 | G90: 2 | H90: 55 | I90: 1125 | K90: Budzynski, Mark | M90: 786.7 | N90: 527.1 | O90: 591.6 | P90: 1905.4
A91: Wenzel, Norman | C91: 88 | D91: 320 | E91: 138 | F91: M4 | G91: 4 | H91: 55 | I91: 1300 | K91: Wenzel, Norman | M91: 474.6 | N91: 255.6 | O91: 991.4 | P91: 1721.6
A92: Goodman, Terry | C92: 96.5 | D92: 1910 | E92: 139 | F92: M5 | G92: 0.5 | H92: 55 | I92: 1125 | K92: Goodman, Terry | M92: 818.6 | N92: 670.2 | O92: 1265.7 | P92: 2754.5
A93: Rabe, Curtis | C93: 89 | D93: 3060 | E93: 124 | F93: M5 | G93: 5 | H93: 55 | I93: 1300 | K93: Rabe, Curtis | M93: 567.6 | N93: 960.3 | O93: 1065.6 | P93: 2593.5
A94: Holm, Brian | C94: 92.5 | D94: 1080 | E94: 142 | F94: M5 | G94: 2.5 | H94: 55 | I94: 1200 | K94: Holm, Brian | M94: 675.2 | N94: 433.8 | O94: 1306.5 | P94: 2415.5
A95: Mcclure, James | C95: 91 | D95: 2110 | E95: 118 | F95: M5 | G95: 1 | H95: 55 | I95: 1200 | K95: Mcclure, James | M95: 627.2 | N95: 723.1 | O95: 987.5 | P95: 2337.8
A96: Luzoro, Joe | C96: 93 | D96: 1500 | E96: 114 | F96: M5 | G96: 3 | H96: 55 | I96: 1200 | K96: Luzoro, Joe | M96: 691.9 | N96: 557.4 | O96: 936.1 | P96: 2185.4
A97: Armour, Paul | C97: 85.5 | D97: 870 | E97: 141 | F97: M5 | G97: 1.5 | H97: 55 | I97: 1300 | K97: Armour, Paul | M97: 475 | N97: 367.8 | O97: 1292.8 | P97: 2135.6
A98: Pilcher, William | C98: 81.5 | D98: 1430 | E98: 135 | F98: M5 | G98: 3.5 | H98: 55 | I98: 1425 | K98: Pilcher, William | M98: 385.5 | N98: 537.4 | O98: 1211.7 | P98: 2134.6
A99: Vosburgh, George | C99: 93 | D99: 2370 | E99: 91 | F99: M5 | G99: 3 | H99: 55 | I99: 1200 | K99: Vosburgh, George | M99: 691.9 | N99: 790.2 | O99: 651.4 | P99: 2133.5
A100: Golly, David | C100: 92.5 | D100: 2620 | E100: 80 | F100: M5 | G100: 2.5 | H100: 55 | I100: 1200 | K100: Golly, David | M100: 675.2 | N100: 853 | O100: 522.8 | P100: 2051
A101: Able, John | C101: 89 | D101: 1740 | E101: 93 | F101: M5 | G101: 5 | H101: 55 | I101: 1300 | K101: Able, John | M101: 567.6 | N101: 624.2 | O101: 675.4 | P101: 1867.2
A102: Chappell, Dean | C102: 79.5 | D102: 830 | E102: 121 | F102: M6 | G102: 1.5 | H102: 55 | I102: 1425 | K102: Chappell, Dean | M102: 436.9 | N102: 337.9 | O102: 1370.4 | P102: 2145.2
A103: Merchant, Wilson | C103: 82 | D103: 770 | E103: 68 | F103: M6 | G103: 4 | H103: 55 | I103: 1425 | K103: Merchant, Wilson | M103: 500 | N103: 314.5 | O103: 568.9 | P103: 1383.4
A104: Combs, Hank | C104: 3.5 | D104: 1260 | E104: 66 | F104: M6 | G104: 3.5 | H104: 25 | I104: 1825 | K104: Combs, Hank | M104: 28 | N104: 503.8 | O104: 541.1 | P104: 1072.9
A105: Longo, Dennis | C105: 92 | D105: 1860 | E105: 76 | F105: M7 | G105: 2 | H105: 52 | I105: 1125 | K105: Longo, Dennis | M105: 1250.2 | N105: 763 | O105: 887.8 | P105: 2901
A106: Scharpf, Tad | C106: 85.5 | D106: 2210 | E106: 53 | F106: M7 | G106: 1.5 | H106: 52 | I106: 1200 | K106: Scharpf, Tad | M106: 827.9 | N106: 901 | O106: 515.8 | P106: 2244.7
A107: Hayes, Michael | C107: 87 | D107: 1210 | E107: 46 | F107: M7 | G107: 3 | H107: 52 | I107: 1200 | K107: Hayes, Michael | M107: 912.5 | N107: 504.1 | O107: 406.9 | P107: 1823.5
A108: Bucher, Don | C108: 80.5 | D108: 660 | E108: 31 | F108: M7 | G108: 2.5 | H108: 52 | I108: 1300 | K108: Bucher, Don | M108: 593.4 | N108: 281 | O108: 183.6 | P108: 1058
A109: Tabas, Michael | C109: 5 | D109: 980 | E109: 42 | F109: M7 | G109: 5 | H109: 25 | I109: 2300 | K109: Tabas, Michael | M109: 40 | N109: 411.4 | O109: 345.8 | P109: 797.2
A110: Holmes, Chuck | C110: 76.5 | D110: 960 | E110: 42 | F110: M8 | G110: 4.5 | H110: 49 | I110: 1300 | K110: Holmes, Chuck | M110: 756.8 | N110: 414.8 | O110: 500.1 | P110: 1671.7
A111: Piercy, Carrol | C111: 49.5 | D111: 820 | E111: 34 | F111: M8 | G111: 1.5 | H111: 49 | I111: 2300 | K111: Piercy, Carrol | M111: 123 | N111: 334.1 | O111: 351.4 | P111: 808.5
A112: Bryant, Errol | C112: 2 | D112: 860 | F112: M8 | G112: 2 | H112: 25 | I112: 2300 | K112: Bryant, Errol | M112: 16 | N112: 356.7 | O112: 0 | P112: 372.7
A113: Hosner, Jerry | C113: 86 | D113: 1740 | E113: 34 | F113: M9 | G113: 2 | H113: 49 | I113: 1125 | K113: Hosner, Jerry | M113: 1758.7 | N113: 1500 | O113: 451.4 | P113: 3710.1
A114: Kunde, Bruce | C114: 1.5 | D114: 1530 | E114: 83 | F114: M9 | G114: 1.5 | H114: 25 | I114: 2300 | K114: Kunde, Bruce | M114: 12 | N114: 1268.2 | O114: 1840.6 | P114: 3120.8
A115: Mccreight, Floyd | C115: 68 | D115: 500 | E115: 0 | F115: M9 | G115: 2 | H115: 49 | I115: 1425 | K115: Mccreight, Floyd | M115: 879.1 | N115: 294.7 | O115: 0 | P115: 1173.8
A116: Hanna, Jack | C116: 3.5 | D116: 680 | F116: M9 | G116: 3.5 | H116: 25 | I116: 2300 | K116: Hanna, Jack | M116: 28 | N116: 440.1 | O116: 0 | P116: 468.1
A117: Wahl, Roger | C117: 0 | D117: 570 | E117: 0 | F117: M9 | K117: Wahl, Roger | M117: 0 | N117: 349.6 | O117: 0 | P117: 349.6
A118: Schouten, Bill | C118: 38 | D118: 780 | F118: M10 | G118: 2 | H118: 43 | I118: 2300 | K118: Schouten, Bill | M118: 522 | N118: 760.7 | O118: 0 | P118: 1282.7
A119: Faulkner, Elgin | C119: 2 | D119: 550 | E119: 34 | F119: M10 | G119: 2 | H119: 25 | I119: 2300 | K119: Faulkner, Elgin | M119: 16 | N119: 546.8 | O119: 687.5 | P119: 1250.3
A120: Shaw, Marc | C120: 104 | D120: 2620 | E120: 124 | F120: MM | G120: 2 | H120: 55 | I120: 1075 | K120: Shaw, Marc | M120: 1039 | N120: 720.2 | O120: 560 | P120: 2319.2
A121: Kinney, Brian | C121: 98.5 | D121: 6460 | E121: 203 | F121: OM | G121: 2.5 | H121: 58 | I121: 1200 | K121: Kinney, Brian | M121: 817.8 | N121: 1140.6 | O121: 1207 | P121: 3165.4
A122: Schaffer, Dylan | C122: 105 | D122: 7710 | E122: 160 | F122: OM | G122: 3 | H122: 58 | I122: 1125 | K122: Schaffer, Dylan | M122: 979.2 | N122: 1232.3 | O122: 914.9 | P122: 3126.4
A123: Seal, Stephen | C123: 100 | D123: 5810 | E123: 190 | F123: OM | G123: 4 | H123: 58 | I123: 1200 | K123: Seal, Stephen | M123: 853.3 | N123: 1089 | O123: 1119.4 | P123: 3061.7
A124: Brooks, Steven | C124: 98.5 | D124: 5920 | E124: 182 | F124: OM | G124: 2.5 | H124: 58 | I124: 1200 | K124: Brooks, Steven | M124: 817.8 | N124: 1097.9 | O124: 1065.2 | P124: 2980.9
A125: Malak, Kevin | C125: 98 | D125: 2210 | E125: 187 | F125: OM | G125: 2 | H125: 58 | I125: 1200 | K125: Malak, Kevin | M125: 806.2 | N125: 713.8 | O125: 1099.1 | P125: 2619.1
A126: Jaquess, Regina | C126: 110 | D126: 7460 | E126: 165 | F126: OW | G126: 2 | H126: 55 | I126: 1025 | K126: Jaquess, Regina | M126: 1500 | N126: 1376.4 | O126: 1408.2 | P126: 4284.6
A127: Haw, Makayla | C127: 98.5 | D127: 3310 | E127: 163 | F127: OW | G127: 2.5 | H127: 55 | I127: 1125 | K127: Haw, Makayla | M127: 1219.5 | N127: 946.3 | O127: 1391.4 | P127: 3557.2
A128: Greenwood, Brittany | C128: 89 | D128: 3420 | E128: 144 | F128: W1 | G128: 5 | H128: 55 | I128: 1300 | K128: Greenwood, Brittany | M128: 1072.6 | N128: 1000.4 | O128: 1402.4 | P128: 3475.4
A129: Runion, Haley | C129: 86 | D129: 3730 | E129: 142 | F129: W1 | G129: 2 | H129: 55 | I129: 1300 | K129: Runion, Haley | M129: 1013.4 | N129: 1037.8 | O129: 1384.4 | P129: 3435.6
A130: Lindy, Alison | C130: 94 | D130: 3810 | E130: 116 | F130: W1 | G130: 4 | H130: 55 | I130: 1200 | K130: Lindy, Alison | M130: 1174.1 | N130: 1047.1 | O130: 1144 | P130: 3365.2
A131: Mcclure, Kayla | C131: 87 | D131: 3110 | E131: 112 | F131: W1 | G131: 3 | H131: 55 | I131: 1300 | K131: Mcclure, Kayla | M131: 1033 | N131: 961.1 | O131: 1105.7 | P131: 3099.8
A132: Waitt, Julia | C132: 91.5 | D132: 2340 | E132: 103 | F132: W1 | G132: 1.5 | H132: 55 | I132: 1200 | K132: Waitt, Julia | M132: 1122.9 | N132: 852.4 | O132: 1018.1 | P132: 2993.4
A133: Guyer, Carli | C133: 78 | D133: 3210 | E133: 94 | F133: W1 | G133: 6 | H133: 55 | I133: 1600 | K133: Guyer, Carli | M133: 862.4 | N133: 974 | O133: 928.2 | P133: 2764.6
A134: Backlund, Caley | C134: 77 | D134: 1440 | E134: 94 | F134: W1 | G134: 5 | H134: 55 | I134: 1600 | K134: Backlund, Caley | M134: 844.2 | N134: 694.5 | O134: 928.2 | P134: 2466.9
A135: Chayer, Alyssa | C135: 93 | D135: 1070 | E135: 64 | F135: W1 | G135: 3 | H135: 55 | I135: 1200 | K135: Chayer, Alyssa | M135: 1153.5 | N135: 612.7 | O135: 606.3 | P135: 2372.5
A136: Fowler, Elizabeth | C136: 86 | D136: 1170 | E136: 63 | F136: W1 | G136: 2 | H136: 55 | I136: 1300 | K136: Fowler, Elizabeth | M136: 1013.4 | N136: 636.2 | O136: 594.7 | P136: 2244.3
A137: Combs, Ashley | C137: 74 | D137: 540 | E137: 84 | F137: W1 | G137: 2 | H137: 55 | I137: 1600 | K137: Combs, Ashley | M137: 790.6 | N137: 459.1 | O137: 825.2 | P137: 2074.9
A138: Barringer, Jamie | C138: 81 | D138: 3480 | E138: 111 | F138: W2 | G138: 3 | H138: 55 | I138: 1425 | K138: Barringer, Jamie | M138: 758.4 | N138: 903.6 | O138: 1052.8 | P138: 2714.8
A139: Harris, Betsy | C139: 80 | D139: 3910 | E139: 105 | F139: W2 | G139: 2 | H139: 55 | I139: 1425 | K139: Harris, Betsy | M139: 737.8 | N139: 961.6 | O139: 992.9 | P139: 2692.3
A140: McClure, Kristin | C140: 93 | D140: 2410 | E140: 89 | F140: W2 | G140: 3 | H140: 55 | I140: 1200 | K140: McClure, Kristin | M140: 1030.8 | N140: 742.6 | O140: 829.2 | P140: 2602.6
A141: Tranchita, Michelle | C141: 75.5 | D141: 1150 | E141: 81 | F141: W2 | G141: 3.5 | H141: 55 | I141: 1600 | K141: Tranchita, Michelle | M141: 649.4 | N141: 500.3 | O141: 744.8 | P141: 1894.5
A142: Velander, Sara | C142: 59.5 | D142: 610 | E142: 74 | F142: W2 | G142: 5.5 | H142: 52 | I142: 2300 | K142: Velander, Sara | M142: 387.3 | N142: 356.6 | O142: 669.1 | P142: 1413
A143: Baldwin, Brenda | C143: 98 | D143: 3610 | E143: 135 | F143: W3 | G143: 2 | H143: 55 | I143: 1125 | K143: Baldwin, Brenda | M143: 1214.2 | N143: 1007.4 | O143: 1321 | P143: 3542.6
A144: Krueger, Lori | C144: 97.5 | D144: 3620 | E144: 127 | F144: W3 | G144: 1.5 | H144: 55 | I144: 1125 | K144: Krueger, Lori | M144: 1195.4 | N144: 1009.3 | O144: 1247.3 | P144: 3452
A145: Nagle, Brandy | C145: 88.5 | D145: 3110 | E145: 94 | F145: W3 | G145: 4.5 | H145: 55 | I145: 1300 | K145: Nagle, Brandy | M145: 890 | N145: 909.4 | O145: 928.2 | P145: 2727.6
A146: Krueger, Julie | C146: 88.5 | D146: 2550 | E146: 78 | F146: W3 | G146: 4.5 | H146: 55 | I146: 1300 | K146: Krueger, Julie | M146: 890 | N146: 793.6 | O146: 761.5 | P146: 2445.1
A147: Koenig, Mary | C147: 87 | D147: 2640 | E147: 93 | F147: W4 | G147: 3 | H147: 55 | I147: 1300 | K147: Koenig, Mary | M147: 963.1 | N147: 852.1 | O147: 1106.7 | P147: 2921.9
A148: Bergmark, Connie | C148: 85 | D148: 2460 | E148: 96 | F148: W4 | G148: 1 | H148: 55 | I148: 1300 | K148: Bergmark, Connie | M148: 897.1 | N148: 808 | O148: 1147.8 | P148: 2852.9
A149: Knight, Sandy | C149: 86 | D149: 3210 | E149: 74 | F149: W4 | G149: 2 | H149: 55 | I149: 1300 | K149: Knight, Sandy | M149: 929.7 | N149: 987.1 | O149: 843.1 | P149: 2759.9
A150: Lindsey, Tristina | C150: 87 | D150: 3160 | E150: 71 | F150: W4 | G150: 3 | H150: 55 | I150: 1300 | K150: Lindsey, Tristina | M150: 963.1 | N150: 975.5 | O150: 800.9 | P150: 2739.5
A151: Abbott, Beverly | C151: 75.5 | D151: 3370 | E151: 77 | F151: W4 | G151: 3.5 | H151: 55 | I151: 1600 | K151: Abbott, Beverly | M151: 626.5 | N151: 1023.8 | O151: 885.1 | P151: 2535.4
A152: Bryans, Kim | C152: 61.5 | D152: 820 | E152: 47 | F152: W4 | G152: 1.5 | H152: 55 | I152: 2300 | K152: Bryans, Kim | M152: 342.9 | N152: 353.7 | O152: 456 | P152: 1152.6
A153: Fausold, Janie | C153: 86 | D153: 2780 | E153: 66 | F153: W5 | G153: 2 | H153: 52 | I153: 1200 | K153: Fausold, Janie | M153: 1183.6 | N153: 949.8 | O153: 799.5 | P153: 2932.9
A154: Brooks, Carol | C154: 82 | D154: 2250 | E154: 60 | F154: W5 | G154: 4 | H154: 52 | I154: 1300 | K154: Brooks, Carol | M154: 1002 | N154: 808.2 | O154: 699 | P154: 2509.2
A155: Gradick, Debra | C155: 68.5 | D155: 790 | E155: 44 | F155: W5 | G155: 2.5 | H155: 52 | I155: 1600 | K155: Gradick, Debra | M155: 538.8 | N155: 363.7 | O155: 434.6 | P155: 1337.1
A156: Schmitt, Cheryl | C156: 54.5 | D156: 580 | E156: 41 | F156: W5 | G156: 0.5 | H156: 52 | I156: 2300 | K156: Schmitt, Cheryl | M156: 255.3 | N156: 287.3 | O156: 385.7 | P156: 928.3
A157: Heinrich, Gail | C157: 4.5 | D157: 830 | E157: 43 | F157: W5 | G157: 4.5 | H157: 25 | I157: 1825 | K157: Heinrich, Gail | M157: 36 | N157: 377.6 | O157: 418.2 | P157: 831.8
A158: Harrison, Leza | C158: 82 | D158: 3040 | E158: 76 | F158: W6 | G158: 4 | H158: 52 | I158: 1300 | K158: Harrison, Leza | M158: 1185.8 | N158: 1235.6 | O158: 1271.6 | P158: 3693
A159: Edwards, Prissy | C159: 57.5 | D159: 1890 | E159: 64 | F159: W6 | G159: 3.5 | H159: 52 | I159: 2300 | K159: Edwards, Prissy | M159: 374.4 | N159: 809.4 | O159: 949.9 | P159: 2133.7
A160: Cavenaugh, Brenda | C160: 52.5 | D160: 830 | E160: 33 | F160: W6 | G160: 4.5 | H160: 49 | I160: 2300 | K160: Cavenaugh, Brenda | M160: 283.2 | N160: 389.1 | O160: 262.9 | P160: 935.2
A161: Prociw, Janice | C161: 63 | D161: 1520 | E161: 48 | F161: W7 | G161: 3 | H161: 49 | I161: 1600 | K161: Prociw, Janice | M161: 631 | N161: 776.2 | O161: 734.5 | P161: 2141.7
A162: Piercy, Janet | C162: 62.5 | D162: 1570 | E162: 33 | F162: W7 | G162: 2.5 | H162: 49 | I162: 1600 | K162: Piercy, Janet | M162: 613.3 | N162: 797.6 | O162: 323.9 | P162: 1734.8
A163: Price, Artis | C163: 2 | D163: 570 | F163: W10 | G163: 2 | H163: 25 | I163: 2300 | K163: Price, Artis | M163: 16 | N163: 826.6 | O163: 0 | P163: 842.6

Sheet NatsData12
A1: Skier | C1: S | D1: T | E1: J | F1: Div | G1: Slalom result | K1: Skier | M1: S nops | N1: T nops | O1: J nops | P1: NOPS
A2: Gay ,Ryan | C2: 62 | D2: 2380 | F2: B1 | G2: 2 | H2: 49 | I2: 1600 | K2: Gay ,Ryan | M2: 1147.4 | N2: 1136.2 | P2: 2283.6
A3: Butterfield ,Zachary | C3: 62 | D3: 1870 | F3: B1 | G3: 2 | H3: 49 | I3: 1600 | K3: Butterfield ,Zachary | M3: 1147.4 | N3: 1004 | P3: 2151.4
A4: Mccormick ,Noah | C4: 68 | D4: 1370 | F4: B1 | G4: 2 | H4: 49 | I4: 1425 | K4: Mccormick ,Noah | M4: 1258.4 | N4: 855.9 | P4: 2114.3
A5: Roberts ,William | C5: 68 | D5: 1270 | F5: B1 | G5: 2 | H5: 49 | I5: 1425 | K5: Roberts ,William | M5: 1258.4 | N5: 823.2 | P5: 2081.6
A6: Pound ,Trace | C6: 67 | D6: 780 | F6: B1 | G6: 1 | H6: 49 | I6: 1425 | K6: Pound ,Trace | M6: 1239.8 | N6: 641.1 | P6: 1880.9
A7: Roberts ,Edward | C7: 58.5 | D7: 1060 | F7: B1 | G7: 4.5 | H7: 49 | I7: 1825 | K7: Roberts ,Edward | M7: 1082.8 | N7: 750.3 | P7: 1833.1
A8: Collins ,Austin | C8: 50 | D8: 1130 | F8: B1 | G8: 2 | H8: 49 | I8: 2300 | K8: Collins ,Austin | M8: 926.5 | N8: 775.4 | P8: 1701.9
A9: Lindaman ,Gabe | C9: 67 | D9: 290 | F9: B1 | G9: 1 | H9: 49 | I9: 1425 | K9: Lindaman ,Gabe | M9: 1239.8 | N9: 385.9 | P9: 1625.7
A10: Stockstill ,Cade | C10: 62 | D10: 380 | F10: B1 | G10: 2 | H10: 49 | I10: 1600 | K10: Stockstill ,Cade | M10: 1147.4 | N10: 443.3 | P10: 1590.7
A11: Weber ,Samuel | C11: 55 | D11: 480 | F11: B1 | G11: 1 | H11: 49 | I11: 1825 | K11: Weber ,Samuel | M11: 1018.3 | N11: 499.8 | P11: 1518.1
A12: Haines, Quinn | C12: 92 | D12: 2190 | E12: 117 | F12: B2 | G12: 2 | H12: 55 | I12: 1200 | K12: Haines, Quinn | M12: 1193.7 | N12: 792.3 | O12: 1271.4 | P12: 3257.4
A13: Canepa, Ryan | C13: 91.5 | D13: 3310 | E13: 95 | F13: B2 | G13: 1.5 | H13: 55 | I13: 1200 | K13: Canepa, Ryan | M13: 1181.6 | N13: 973.6 | O13: 1062.2 | P13: 3217.4
A14: Montgomery, Ryan | C14: 90 | D14: 2210 | E14: 91 | F14: B2 | G14: 6 | H14: 55 | I14: 1300 | K14: Montgomery, Ryan | M14: 1145.8 | N14: 795.9 | O14: 1022.2 | P14: 2963.9
A15: Goddard, Thomas | C15: 75.5 | D15: 2080 | E15: 109 | F15: B2 | G15: 3.5 | H15: 55 | I15: 1600 | K15: Goddard, Thomas | M15: 826.5 | N15: 772.2 | O15: 1197.3 | P15: 2796
A16: Warner, Ryan | C16: 75.5 | D16: 3150 | E16: 74 | F16: B2 | G16: 3.5 | H16: 55 | I16: 1600 | K16: Warner, Ryan | M16: 826.5 | N16: 949.9 | O16: 843.1 | P16: 2619.5
A17: Leutz, Benjamin | C17: 80.5 | D17: 940 | E17: 97 | F17: B2 | G17: 2.5 | H17: 55 | I17: 1425 | K17: Leutz, Benjamin | M17: 931 | N17: 519.5 | O17: 1082 | P17: 2532.5
A18: Porter, Jordan | C18: 80 | D18: 940 | E18: 95 | F18: B2 | G18: 2 | H18: 55 | I18: 1425 | K18: Porter, Jordan | M18: 920.3 | N18: 519.5 | O18: 1062.2 | P18: 2502
A19: Greene, Daniel | C19: 61.5 | D19: 2250 | E19: 97 | F19: B2 | G19: 1.5 | H19: 55 | I19: 2300 | K19: Greene, Daniel | M19: 565.6 | N19: 803 | O19: 1082 | P19: 2450.6
A20: Fry, Colten | C20: 85.5 | D20: 660 | E20: 85 | F20: B2 | G20: 1.5 | H20: 55 | I20: 1300 | K20: Fry, Colten | M20: 1041.5 | N20: 435.5 | O20: 960.7 | P20: 2437.7
A21: Melnar, Dylan | C21: 75.5 | D21: 1100 | E21: 83 | F21: B2 | G21: 3.5 | H21: 55 | I21: 1600 | K21: Melnar, Dylan | M21: 826.5 | N21: 561.9 | O21: 939.9 | P21: 2328.3
A22: Lang, Nicholas | C22: 105 | D22: 5210 | E22: 175 | F22: B3 | G22: 3 | H22: 58 | I22: 1125 | K22: Lang, Nicholas | M22: 1087.6 | N22: 1034.7 | O22: 1328.9 | P22: 3451.2
A23: Garcia, Taylor | C23: 106.5 | D23: 4350 | E23: 167 | F23: B3 | G23: 4.5 | H23: 58 | I23: 1125 | K23: Garcia, Taylor | M23: 1140.8 | N23: 939.5 | O23: 1244.6 | P23: 3324.9
A24: Greenwood, Samuel | C24: 99 | D24: 5730 | E24: 163 | F24: B3 | G24: 3 | H24: 58 | I24: 1200 | K24: Greenwood, Samuel | M24: 893.1 | N24: 1088.7 | O24: 1202.7 | P24: 3184.5
A25: DeVito, Christian | C25: 101.5 | D25: 6210 | E25: 146 | F25: B3 | G25: 5.5 | H25: 58 | I25: 1200 | K25: DeVito, Christian | M25: 970.7 | N25: 1136.6 | O25: 1027 | P25: 3134.3
A26: Mechler, Dane | C26: 110 | D26: 4060 | E26: 135 | F26: B3 | G26: 2 | H26: 58 | I26: 1075 | K26: Mechler, Dane | M26: 1272 | N26: 905.5 | O26: 915.6 | P26: 3093.1
A27: Wilson, KC | C27: 111 | D27: 2710 | E27: 103 | F27: B3 | G27: 3 | H27: 58 | I27: 1075 | K27: Wilson, KC | M27: 1311.5 | N27: 729.4 | O27: 602.9 | P27: 2643.8
A28: Guyer, Corbin | C28: 96.5 | D28: 3560 | E28: 141 | F28: B3 | G28: 0.5 | H28: 58 | I28: 1200 | K28: Guyer, Corbin | M28: 820.1 | N28: 844 | O28: 976.1 | P28: 2640.2
A29: Kachele, Zachary | C29: 96.5 | D29: 2600 | E29: 145 | F29: B3 | G29: 0.5 | H29: 58 | I29: 1200 | K29: Kachele, Zachary | M29: 820.1 | N29: 713.4 | O29: 1016.8 | P29: 2550.3
A30: Voisard, James | C30: 93.5 | D30: 4820 | E30: 124 | F30: B3 | G30: 3.5 | H30: 58 | I30: 1300 | K30: Voisard, James | M30: 738.5 | N30: 992.5 | O30: 806 | P30: 2537
A31: Kulig, Paul | C31: 101 | D31: 1970 | E31: 132 | F31: B3 | G31: 5 | H31: 58 | I31: 1200 | K31: Kulig, Paul | M31: 954.8 | N31: 615 | O31: 885.5 | P31: 2455.3
A32: Baldwin, Kristen | C32: 74 | D32: 3300 | F32: G1 | G32: 2 | H32: 49 | I32: 1300 | K32: Baldwin, Kristen | M32: 1401 | N32: 1235.5 | P32: 2636.5
A33: Parker, Caroline | C33: 57 | D33: 1540 | F33: G1 | G33: 3 | H33: 49 | I33: 1825 | K33: Parker, Caroline | M33: 1118.8 | N33: 908.8 | P33: 2027.6
A34: Hansen, Kennedy | C34: 56 | D34: 1410 | F34: G1 | G34: 2 | H34: 49 | I34: 1825 | K34: Hansen, Kennedy | M34: 1102.1 | N34: 877.1 | P34: 1979.2
A35: Grathwohl, Allyson | C35: 38 | D35: 2720 | F35: G1 | G35: 2 | H35: 43 | I35: 2300 | K35: grathwohl, Allyson | M35: 799.7 | N35: 1142.9 | P35: 1942.6
A36: Babiash, Kristen | C36: 61 | D36: 760 | F36: G1 | G36: 1 | H36: 49 | I36: 1600 | K36: Babiash, Kristen | M36: 1185.4 | N36: 683.7 | P36: 1869.1
A37: Baldwin, Brooke | C37: 85.5 | D37: 6290 | E37: 95 | F37: G2 | G37: 1.5 | H37: 52 | I37: 1200 | K37: Baldwin, Brooke | M37: 1279.1 | N37: 1447.3 | O37: 1233.7 | P37: 3960.1
A38: Butterfield, Krista | C38: 82.5 | D38: 5780 | E38: 60 | F38: G2 | G38: 4.5 | H38: 52 | I38: 1300 | K38: Butterfield, Krista | M38: 1264.9 | N38: 1219.1 | O38: 926.6 | P38: 3410.6
A39: Gay, Anna | C39: 85 | D39: 4360 | E39: 69 | F39: G2 | G39: 1 | H39: 52 | I39: 1200 | K39: Gay, Anna | M39: 1195.3 | N39: 1391.1 | O39: 809.6 | P39: 3396
A40: Morgan, Emma | C40: 79 | D40: 3980 | E40: 69 | F40: G2 | G40: 1 | H40: 52 | I40: 1300 | K40: Morgan, Emma | M40: 1101.1 | N40: 1168.2 | O40: 926.6 | P40: 3195.9
A41: Grathwohl, Bailey | C41: 73 | D41: 3390 | E41: 69 | F41: G2 | G41: 1 | H41: 52 | I41: 1425 | K41: Grathwohl, Bailey | M41: 948 | N41: 1083.7 | O41: 926.6 | P41: 2958.3
A42: Grathwohl, Taylor | C42: 79 | D42: 2450 | E42: 68 | F42: G2 | G42: 1 | H42: 52 | I42: 1300 | K42: Grathwohl, Taylor | M42: 1101.1 | N42: 930.9 | O42: 913.9 | P42: 2945.9
A43: Stackpole, Samantha | C43: 79 | D43: 1620 | E43: 68 | F43: G2 | G43: 1 | H43: 52 | I43: 1300 | K43: Stackpole, Samantha | M43: 1101.1 | N43: 767.1 | O43: 913.9 | P43: 2782.1
A44: Horton, Katie | C44: 71 | D44: 3000 | E44: 52 | F44: G2 | G44: 5 | H44: 52 | I44: 1600 | K44: Horton, Katie | M44: 899.4 | N44: 1023.5 | O44: 699 | P44: 2621.9
A45: Montgomery, Ashley | C45: 75.5 | D45: 2340 | E45: 49 | F45: G2 | G45: 3.5 | H45: 52 | I45: 1425 | K45: Montgomery, Ashley | M45: 1010.5 | N45: 911.1 | O45: 655.6 | P45: 2577.2
A46: Roberts, Nellie | C46: 73.5 | D46: 2010 | E46: 51 | F46: G2 | G46: 1.5 | H46: 52 | I46: 1425 | K46: Roberts, Nellie | M46: 960.4 | N46: 848.5 | O46: 684.7 | P46: 2493.6
A47: Lang, Erika | C47: 95.5 | D47: 9140 | E47: 119 | F47: G3 | G47: 5.5 | H47: 55 | I47: 1200 | K47: Lang, Erika | M47: 1249.2 | N47: 1573.7 | O47: 1124.9 | P47: 3947.8
A48: MacIntyre, Kara | C48: 98 | D48: 5380 | E48: 105 | F48: G3 | G48: 2 | H48: 55 | I48: 1125 | K48: MacIntyre, Kara | M48: 1384.2 | N48: 1159.7 | O48: 972.1 | P48: 3516
A49: Horton, Ellie | C49: 91.5 | D49: 4840 | E49: 112 | F49: G3 | G49: 1.5 | H49: 55 | I49: 1200 | K49: Horton, Ellie | M49: 1054.6 | N49: 1091.1 | O49: 1048.7 | P49: 3194.4
A50: Morris, Jaye | C50: 90.5 | D50: 2990 | E50: 121 | F50: G3 | G50: 0.5 | H50: 55 | I50: 1200 | K50: Morris, Jaye | M50: 1009.9 | N50: 826.8 | O50: 1146.6 | P50: 2983.3
A51: Grathwohl, Abbi | C51: 91.5 | D51: 3790 | E51: 102 | F51: G3 | G51: 1.5 | H51: 55 | I51: 1200 | K51: Grathwohl, Abbi | M51: 1054.6 | N51: 947.8 | O51: 939.1 | P51: 2941.5
A52: Morgan, Jenna | C52: 91 | D52: 3720 | E52: 101 | F52: G3 | G52: 1 | H52: 55 | I52: 1200 | K52: Morgan, Jenna | M52: 1032.1 | N52: 937.7 | O52: 928.1 | P52: 2897.9
A53: Waitt, Julia | C53: 92.5 | D53: 2420 | E53: 96 | F53: G3 | G53: 2.5 | H53: 55 | I53: 1200 | K53: Waitt, Julia | M53: 1100.9 | N53: 732 | O53: 872.9 | P53: 2705.8
A54: Daulton, Riley | C54: 82 | D54: 2090 | E54: 111 | F54: G3 | G54: 4 | H54: 55 | I54: 1425 | K54: Daulton, Riley | M54: 686.5 | N54: 672.7 | O54: 1037.8 | P54: 2397
A55: Schneider, Madison | C55: 80 | D55: 1430 | E55: 95 | F55: G3 | G55: 2 | H55: 55 | I55: 1425 | K55: Schneider, Madison | M55: 624 | N55: 540.6 | O55: 861.8 | P55: 2026.4
A56: Nicholson, Allie | C56: 87.5 | D56: 660 | E56: 70 | F56: G3 | G56: 3.5 | H56: 55 | I56: 1300 | K56: Nicholson, Allie | M56: 884.5 | N56: 346.3 | O56: 580.4 | P56: 1811.2
A57: Schaffer, Dylan | C57: 104 | D57: 8450 | E57: 159 | F57: M1 | G57: 2 | H57: 58 | I57: 1125 | K57: Schaffer, Dylan | M57: 982.4 | N57: 1339.9 | O57: 1091.8 | P57: 3414.1
A58: Stevenson, Michael | C58: 104 | D58: 5270 | E58: 168 | F58: M1 | G58: 2 | H58: 58 | I58: 1125 | K58: Stevenson, Michael | M58: 982.4 | N58: 1099.9 | O58: 1165.7 | P58: 3248
A59: Van Treese, Benjamin | C59: 98 | D59: 2540 | E59: 121 | F59: M1 | G59: 2 | H59: 58 | I59: 1200 | K59: Van Treese, Benjamin | M59: 816.4 | N59: 975 | O59: 1050.7 | P59: 2842.1
A60: Cole, Randall | C60: 106 | D60: 3950 | E60: 154 | F60: M1 | G60: 4 | H60: 58 | I60: 1125 | K60: Cole, Randall | M60: 1042.7 | N60: 810.7 | O60: 777.4 | P60: 2630.8
A61: Curmi, Aaron | C61: 97 | D61: 4150 | E61: 128 | F61: M1 | G61: 1 | H61: 58 | I61: 1200 | K61: Curmi, Aaron | M61: 790.9 | N61: 995.4 | O61: 835.7 | P61: 2622
A62: Hinkle, Ryan | C62: 97.5 | D62: 1770 | E62: 145 | F62: M1 | G62: 1.5 | H62: 58 | I62: 1200 | K62: Hinkle, Ryan | M62: 803.6 | N62: 697.1 | O62: 976.5 | P62: 2477.2
A63: Shipanock, Adam | C63: 98.5 | D63: 1900 | E63: 127 | F63: M1 | G63: 2.5 | H63: 58 | I63: 1200 | K63: Shipanock, Adam | M63: 829.4 | N63: 718.1 | O63: 827.4 | P63: 2374.9
A64: Brooks, Ryan | C64: 98 | D64: 1770 | E64: 128 | F64: M1 | G64: 2 | H64: 58 | I64: 1200 | K64: Brooks, Ryan | M64: 816.4 | N64: 697.1 | O64: 835.7 | P64: 2349.2
A65: Larson, Erik | C65: 93 | D65: 2670 | E65: 140 | F65: M1 | G65: 3 | H65: 58 | I65: 1300 | K65: Larson, Erik | M65: 694.4 | N65: 664.8 | O65: 517.1 | P65: 1876.3
A66: Zimmerman, Kyle | C66: 2.5 | D66: 1580 | E66: 90 | F66: M1 | G66: 2.5 | H66: 25 | I66: 1825 | K66: Zimmerman, Kyle | M66: 20 | N66: 827.8 | O66: 935.2 | P66: 1783
A67: Barringer, Treece | C67: 99 | D67: 3860 | E67: 179 | F67: M2 | G67: 3 | H67: 58 | I67: 1200 | K67: Barringer, Treece | M67: 790 | N67: 900.7 | O67: 1171.1 | P67: 2861.8
A68: Kodiak, Cris | C68: 81.5 | D68: 2110 | E68: 122 | F68: M2 | G68: 3.5 | H68: 58 | I68: 1600 | K68: Kodiak, Cris | M68: 441.9 | N68: 685.1 | O68: 681.3 | P68: 1808.3
A69: Klingbeil, Kevin | C69: 86 | D69: 1480 | E69: 125 | F69: M2 | G69: 2 | H69: 58 | I69: 1425 | K69: Klingbeil, Kevin | M69: 517.6 | N69: 583.4 | O69: 706.5 | P69: 1807.5
A70: Legg, Brian | C70: 98.5 | D70: 1190 | E70: 95 | F70: M2 | G70: 2.5 | H70: 58 | I70: 1200 | K70: Legg, Brian | M70: 777.9 | N70: 528.6 | O70: 459.3 | P70: 1765.8
A71: Lemley, Dan | C71: 68 | D71: 1020 | E71: 120 | F71: M2 | G71: 2 | H71: 58 | I71: 2300 | K71: Lemley, Dan | M71: 264.5 | N71: 492.9 | O71: 664.6 | P71: 1422
A72: Burnash, Kyle | C72: 3.5 | D72: 740 | E72: 52 | F72: M2 | G72: 3.5 | H72: 25 | I72: 1825 | K72: Burnash, Kyle | M72: 28 | N72: 426.2 | O72: 128 | P72: 582.2
A73: Surdej, Jeff | C73: 103 | D73: 3760 | E73: 174 | F73: M3 | G73: 1 | H73: 55 | I73: 1075 | K73: Surdej, Jeff | M73: 1029.9 | N73: 870.1 | O73: 1215.7 | P73: 3115.7
A74: Hooten, Jody | C74: 93 | D74: 3060 | E74: 172 | F74: M3 | G74: 3 | H74: 55 | I74: 1200 | K74: Hooten, Jody | M74: 631 | N74: 790.3 | O74: 1192.7 | P74: 2614
A75: Whetsel, Kirby | C75: 93.5 | D75: 2300 | E75: 164 | F75: M3 | G75: 3.5 | H75: 55 | I75: 1200 | K75: Whetsel, Kirby | M75: 647.2 | N75: 691.6 | O75: 1102.1 | P75: 2440.9
A76: Eller, Christophe | C76: 96 | D76: 1800 | E76: 161 | F76: M3 | G76: 6 | H76: 55 | I76: 1200 | K76: Eller, Christophe | M76: 733.8 | N76: 616.8 | O76: 1068.6 | P76: 2419.2
A77: Bellefeuille, Scott | C77: 99 | D77: 3150 | E77: 132 | F77: M3 | G77: 3 | H77: 55 | I77: 1125 | K77: Bellefeuille, Scott | M77: 850.5 | N77: 801 | O77: 759.9 | P77: 2411.4
A78: Fisher, Forest | C78: 95 | D78: 5980 | E78: 91 | F78: M3 | G78: 5 | H78: 55 | I78: 1200 | K78: Fisher, Forest | M78: 698.1 | N78: 1080.6 | O78: 377.5 | P78: 2156.2
A79: Milhorn, Michael | C79: 89 | D79: 2940 | E79: 123 | F79: M3 | G79: 5 | H79: 55 | I79: 1300 | K79: Milhorn, Michael | M79: 513.3 | N79: 775.6 | O79: 670.1 | P79: 1959
A80: Piercy, Cory | C80: 80.5 | D80: 1650 | E80: 143 | F80: M3 | G80: 2.5 | H80: 55 | I80: 1425 | K80: Piercy, Cory | M80: 325.2 | N80: 592.2 | O80: 873.7 | P80: 1791.1
A81: Wenzel, Norman | C81: 88.5 | D81: 320 | E81: 139 | F81: M3 | G81: 4.5 | H81: 55 | I81: 1300 | K81: Wenzel, Norman | M81: 500 | N81: 275.3 | O81: 831.8 | P81: 1607.1
A82: Ripley, Ryan | C82: 80 | D82: 2120 | E82: 81 | F82: M3 | G82: 2 | H82: 55 | I82: 1425 | K82: Ripley, Ryan | M82: 316.4 | N82: 665.8 | O82: 296 | P82: 1278.2
A83: Knight, Tony | C83: 100 | D83: 4890 | E83: 141 | F83: M4 | G83: 4 | H83: 55 | I83: 1125 | K83: Knight, Tony | M83: 898 | N83: 991.7 | O83: 1054.3 | P83: 2944
A84: Goodman, Terry | C84: 95.5 | D84: 1500 | E84: 160 | F84: M4 | G84: 5.5 | H84: 55 | I84: 1200 | K84: Goodman, Terry | M84: 718.4 | N84: 519.6 | O84: 1273.5 | P84: 2511.5
A85: Newman, Thomas | C85: 92.5 | D85: 2570 | E85: 153 | F85: M4 | G85: 2.5 | H85: 55 | I85: 1200 | K85: Newman, Thomas | M85: 616.4 | N85: 697.5 | O85: 1191.9 | P85: 2505.8
A86: Haines, Hutch | C86: 98 | D86: 1320 | E86: 154 | F86: M4 | G86: 2 | H86: 55 | I86: 1125 | K86: Haines, Hutch | M86: 814 | N86: 484.5 | O86: 1203.5 | P86: 2502
A87: Young, Barry | C87: 100 | D87: 2370 | E87: 128 | F87: M4 | G87: 4 | H87: 55 | I87: 1125 | K87: Young, Barry | M87: 898 | N87: 667.3 | O87: 908.9 | P87: 2474.2
A88: Grau, Mitch | C88: 92.5 | D88: 2200 | E88: 149 | F88: M4 | G88: 2.5 | H88: 55 | I88: 1200 | K88: Grau, Mitch | M88: 616.4 | N88: 640.7 | O88: 1145.7 | P88: 2402.8
A89: Webb, Greg | C89: 93 | D89: 2240 | E89: 133 | F89: M4 | G89: 3 | H89: 55 | I89: 1200 | K89: Webb, Greg | M89: 632.5 | N89: 647 | O89: 964.4 | P89: 2243.9
A90: Estes, Robbie | C90: 94.5 | D90: 2270 | E90: 125 | F90: M4 | G90: 4.5 | H90: 55 | I90: 1200 | K90: Estes, Robbie | M90: 682.9 | N90: 651.7 | O90: 876 | P90: 2210.6
A91: Kokernak, David | C91: 94 | D91: 1670 | E91: 122 | F91: M4 | G91: 4 | H91: 55 | I91: 1200 | K91: Kokernak, David | M91: 665.7 | N91: 551 | O91: 843.2 | P91: 2059.9
A92: Lindsey, Jeff | C92: 95.5 | D92: 1730 | E92: 116 | F92: M4 | G92: 5.5 | H92: 55 | I92: 1200 | K92: Lindsey, Jeff | M92: 718.4 | N92: 561.7 | O92: 778.5 | P92: 2058.6
A93: Miller, Stephen | C93: 92.5 | D93: 2790 | E93: 131 | F93: M5 | G93: 2.5 | H93: 55 | I93: 1200 | K93: Miller, Stephen | M93: 675.2 | N93: 894.9 | O93: 1220.6 | P93: 2790.7
A94: Johnson, Dee | C94: 92 | D94: 2500 | E94: 129 | F94: M5 | G94: 2 | H94: 55 | I94: 1200 | K94: Johnson, Dee | M94: 658.9 | N94: 823 | O94: 1194.4 | P94: 2676.3
A95: Vosburgh, George | C95: 92 | D95: 3060 | E95: 107 | F95: M5 | G95: 2 | H95: 55 | I95: 1200 | K95: Vosburgh, George | M95: 658.9 | N95: 960.3 | O95: 912 | P95: 2531.2
A96: Holm, Brian | C96: 95 | D96: 970 | E96: 142 | F96: M5 | G96: 5 | H96: 55 | I96: 1200 | K96: Holm, Brian | M96: 762.1 | N96: 399.7 | O96: 1366 | P96: 2527.8
A97: Mcclure, James | C97: 89 | D97: 2110 | E97: 110 | F97: M5 | G97: 5 | H97: 55 | I97: 1300 | K97: Mcclure, James | M97: 567.6 | N97: 723.1 | O97: 949.9 | P97: 2240.6
A98: Able, John | C98: 91 | D98: 1890 | E98: 91 | F98: M5 | G98: 1 | H98: 55 | I98: 1200 | K98: Able, John | M98: 627.2 | N98: 664.9 | O98: 713.9 | P98: 2006
A99: Archambeau, Robert | C99: 92 | D99: 710 | E99: 115 | F99: M5 | G99: 2 | H99: 55 | I99: 1200 | K99: Archambeau, Robert | M99: 658.9 | N99: 315 | O99: 1013.5 | P99: 1987.4
A100: Lee, Eric | C100: 88 | D100: 3930 | E100: 43 | F100: M5 | G100: 4 | H100: 55 | I100: 1300 | K100: Lee, Eric | M100: 539.7 | N100: 1162.3 | O100: 173.6 | P100: 1875.6
A101: Fitzpatrick, Jay | C101: 94.5 | D101: 1020 | E101: 80 | F101: M5 | G101: 4.5 | H101: 55 | I101: 1200 | K101: Fitzpatrick, Jay | M101: 744 | N101: 415.3 | O101: 582 | P101: 1741.3
A102: Luzoro, Joe | C102: 5 | D102: 1530 | E102: 120 | F102: M5 | G102: 5 | H102: 25 | I102: 1825 | K102: Luzoro, Joe | M102: 40 | N102: 565.9 | O102: 1077.6 | P102: 1683.5
A103: Dees, Frankie | C103: 92.5 | D103: 2750 | E103: 138 | F103: M6 | G103: 2.5 | H103: 55 | I103: 1200 | K103: Dees, Frankie | M103: 891.7 | N103: 1050.3 | O103: 2036.5 | P103: 3978.5
A104: Chappell, Dean | C104: 86.5 | D104: 1350 | E104: 117 | F104: M6 | G104: 2.5 | H104: 55 | I104: 1300 | K104: Chappell, Dean | M104: 672.8 | N104: 518.9 | O104: 1544.6 | P104: 2736.3
A105: Merchant, Wilson | C105: 91.25 | D105: 1670 | E105: 58 | F105: M6 | G105: 1.25 | H105: 55 | I105: 1200 | K105: Merchant, Wilson | M105: 841.9 | N105: 640.7 | O105: 422.9 | P105: 1905.5
A106: Hayes, Michael | C106: 89 | D106: 1210 | E106: 44 | F106: M6 | G106: 5 | H106: 55 | I106: 1300 | K106: Hayes, Michael | M106: 757.9 | N106: 465.6 | O106: 230 | P106: 1453.5
A107: Combs, Hank | C107: 64 | D107: 1230 | E107: 79 | F107: M6 | G107: 4 | H107: 55 | I107: 2300 | K107: Combs, Hank | M107: 206.8 | N107: 473.2 | O107: 771.7 | P107: 1451.7
A108: Fisher, Lance | C108: 98 | D108: 260 | E108: 36 | F108: M6 | G108: 2 | H108: 55 | I108: 1125 | K108: Fisher, Lance | M108: 1139.6 | N108: 101.4 | O108: 137.5 | P108: 1378.5
A109: White, Thomas | C109: 57.5 | D109: 890 | E109: 69 | F109: M6 | G109: 3.5 | H109: 52 | I109: 2300 | K109: White, Thomas | M109: 144.6 | N109: 343.4 | O109: 597.6 | P109: 1085.6
A110: Sandner, James | C110: 3.5 | D110: 1230 | E110: 51 | F110: M6 | G110: 3.5 | H110: 25 | I110: 1825 | K110: Sandner, James | M110: 28 | N110: 473.2 | O110: 322 | P110: 823.2
A111: Bucher, Don | C111: 61.5 | D111: 890 | E111: 39 | F111: M6 | G111: 1.5 | H111: 55 | I111: 2300 | K111: Bucher, Don | M111: 180.1 | N111: 343.4 | O111: 170.5 | P111: 694
A112: Cooper, William | C112: 1.5 | D112: 1000 | E112: 44 | F112: M6 | G112: 1.5 | H112: 25 | I112: 1825 | K112: Cooper, William | M112: 12 | N112: 385.4 | O112: 230 | P112: 627.4
A113: Longo, Dennis | C113: 91.5 | D113: 2100 | E113: 73 | F113: M7 | G113: 1.5 | H113: 52 | I113: 1125 | K113: Longo, Dennis | M113: 1174.7 | N113: 892.2 | O113: 838.3 | P113: 2905.2
A114: Scharpf, Tad | C114: 86 | D114: 2410 | E114: 58 | F114: M7 | G114: 2 | H114: 52 | I114: 1200 | K114: Scharpf, Tad | M114: 788 | N114: 1009.4 | O114: 595 | P114: 2392.4
A115: Sharkey, Randy | C115: 80 | D115: 1680 | E115: 50 | F115: M7 | G115: 2 | H115: 52 | I115: 1300 | K115: Sharkey, Randy | M115: 500 | N115: 730.5 | O115: 468.8 | P115: 1699.3
A116: Sager, Dow | C116: 70 | D116: 1030 | E116: 68 | F116: M7 | G116: 4 | H116: 52 | I116: 1600 | K116: Sager, Dow | M116: 228.5 | N116: 471.3 | O116: 756.3 | P116: 1456.1
A117: Hosner, Jerry | C117: 84.5 | D117: 2170 | E117: 36 | F117: M8 | G117: 0.5 | H117: 49 | I117: 1125 | K117: Hosner, Jerry | M117: 1216.7 | N117: 1313 | O117: 388.4 | P117: 2918.1
A118: Piercy, Carrol | C118: 76 | D118: 1990 | E118: 51 | F118: M8 | G118: 4 | H118: 49 | I118: 1300 | K118: Piercy, Carrol | M118: 733.7 | N118: 1194 | O118: 669.6 | P118: 2597.3
A119: Holmes, Chuck | C119: 80 | D119: 1240 | E119: 40 | F119: M8 | G119: 2 | H119: 49 | I119: 1200 | K119: Holmes, Chuck | M119: 936 | N119: 710.7 | O119: 462.7 | P119: 2109.4
A120: Reid, Glen | C120: 73.5 | D120: 980 | E120: 0 | F120: M8 | G120: 1.5 | H120: 49 | I120: 1300 | K120: Reid, Glen | M120: 627 | N120: 549 | O120: 0 | P120: 1176
A121: Bryant, Errol | C121: 2.5 | D121: 1010 | F121: M8 | G121: 2.5 | H121: 25 | I121: 2300 | K121: Bryant, Errol | M121: 20 | N121: 567.4 | O121: 0 | P121: 587.4
A122: Kunde, Bruce | C122: 67.5 | D122: 1230 | E122: 88 | F122: M9 | G122: 1.5 | H122: 49 | I122: 1425 | K122: Kunde, Bruce | M122: 980.1 | N122: 986.9 | O122: 1999.7 | P122: 3966.7
A123: Wahl, Roger | C123: 60.5 | D123: 580 | F123: M9 | G123: 0.5 | H123: 49 | I123: 1600 | K123: Wahl, Roger | M123: 765.9 | N123: 398.3 | O123: 0 | P123: 1164.2
A124: Hanna, Jack | C124: 5 | D124: 1300 | F124: M9 | G124: 5 | H124: 25 | I124: 2300 | K124: Hanna, Jack | M124: 40 | N124: 1055.1 | O124: 0 | P124: 1095.1
A125: Schouten, Bill | C125: 44.5 | D125: 730 | F125: MA | G125: 2.5 | H125: 46 | I125: 2300 | K125: Schouten, Bill | M125: 606.4 | N125: 714.6 | O125: 0 | P125: 1321
A126: Price, Harry | C126: 2.5 | D126: 890 | E126: 0 | F126: MA | G126: 2.5 | H126: 25 | I126: 2300 | K126: Price, Harry | M126: 20 | N126: 861.7 | O126: 0 | P126: 881.7
A127: Faulkner, Elgin | C127: 3.5 | D127: 520 | E127: 0 | F127: MA | G127: 3.5 | H127: 25 | I127: 2300 | K127: Faulkner, Elgin | M127: 28 | N127: 518.6 | O127: 0 | P127: 546.6
A128: Shaw, Marc | C128: 106.5 | D128: 6700 | E128: 184 | F128: MM | G128: 4.5 | H128: 55 | I128: 1075 | K128: Shaw, Marc | M128: 1201.2 | N128: 1134.6 | O128: 1180.4 | P128: 3516.2
A129: Seal, Stephen | C129: 94.5 | D129: 5920 | E129: 183 | F129: OM | G129: 4.5 | H129: 58 | I129: 1300 | K129: Seal, Stephen | M129: 677.5 | N129: 1081.6 | O129: 1052.7 | P129: 2811.8
A130: Malak, Kevin | C130: 103 | D130: 4960 | E130: 165 | F130: OM | G130: 1 | H130: 58 | I130: 1125 | K130: Malak, Kevin | M130: 883.6 | N130: 997.3 | O130: 926 | P130: 2806.9
A131: Bennett, Danyelle | C131: 98 | D131: 7500 | E131: 148 | F131: OW | G131: 2 | H131: 55 | I131: 1125 | K131: Bennett, Danyelle | M131: 1185 | N131: 1378.5 | O131: 1268 | P131: 3831.5
A132: Todd-strickl, Joy | C132: 92.5 | D132: 7580 | E132: 153 | F132: OW | G132: 2.5 | H132: 55 | I132: 1200 | K132: Todd-strickl, Joy | M132: 1048.5 | N132: 1385.4 | O132: 1310.1 | P132: 3744
A133: Morgan, Lauren | C133: 93 | D133: 4620 | E133: 160 | F133: OW | G133: 3 | H133: 55 | I133: 1200 | K133: Morgan, Lauren | M133: 1060.5 | N133: 1099.9 | O133: 1368.5 | P133: 3528.9
A134: Haw, Makayla | C134: 99 | D134: 4030 | E134: 137 | F134: OW | G134: 3 | H134: 55 | I134: 1125 | K134: Haw, Makayla | M134: 1210.8 | N134: 1032.1 | O134: 1174.1 | P134: 3417
A135: Mcclure, Keri | C135: 99 | D135: 3470 | E135: 118 | F135: W1 | G135: 3 | H135: 55 | I135: 1125 | K135: Mcclure, Keri | M135: 1261.6 | N135: 975.7 | O135: 1163 | P135: 3400.3
A136: Lindy, Alison | C136: 98 | D136: 2880 | E136: 114 | F136: W1 | G136: 2 | H136: 55 | I136: 1125 | K136: Lindy, Alison | M136: 1238.8 | N136: 896.3 | O136: 1124.9 | P136: 3260
A137: Mcclure, Kayla | C137: 80.5 | D137: 3050 | E137: 113 | F137: W1 | G137: 2.5 | H137: 55 | I137: 1425 | K137: Mcclure, Kayla | M137: 870.1 | N137: 920 | O137: 1115.3 | P137: 2905.4
A138: Chayer, Alyssa | C138: 92 | D138: 1220 | E138: 68 | F138: W1 | G138: 2 | H138: 55 | I138: 1200 | K138: Chayer, Alyssa | M138: 1105.8 | N138: 606.4 | O138: 651.7 | P138: 2363.9
A139: Madden, Christine | C139: 65 | D139: 2640 | E139: 78 | F139: W1 | G139: 5 | H139: 55 | I139: 2300 | K139: Madden, Christine | M139: 593.8 | N139: 861.6 | O139: 761.5 | P139: 2216.9
A140: Ruehl, Samantha | C140: 1.5 | D140: 3910 | E140: 48 | F140: W1 | G140: 1.5 | H140: 25 | I140: 1825 | K140: Ruehl, Samantha | M140: 12 | N140: 1030.1 | O140: 412.6 | P140: 1454.7
A141: Kalkbrenner, Erin | C141: 86.5 | D141: 2880 | E141: 128 | F141: W2 | G141: 2.5 | H141: 55 | I141: 1300 | K141: Kalkbrenner, Erin | M141: 888.8 | N141: 745.7 | O141: 1218.5 | P141: 2853
A142: Harris, Betsy | C142: 81 | D142: 3910 | E142: 106 | F142: W2 | G142: 3 | H142: 55 | I142: 1425 | K142: Harris, Betsy | M142: 768.9 | N142: 899.7 | O142: 1002.9 | P142: 2671.5
A143: Barringer, Jamie | C143: 81 | D143: 3190 | E143: 110 | F143: W2 | G143: 3 | H143: 55 | I143: 1425 | K143: Barringer, Jamie | M143: 768.9 | N143: 794 | O143: 1042.8 | P143: 2605.7
A144: Lemley, Sara | C144: 81 | D144: 3970 | E144: 92 | F144: W2 | G144: 3 | H144: 55 | I144: 1425 | K144: Lemley, Sara | M144: 768.9 | N144: 908.1 | O144: 860.4 | P144: 2537.4
A145: Tranchita, Michelle | C145: 82.5 | D145: 930 | E145: 69 | F145: W2 | G145: 4.5 | H145: 55 | I145: 1425 | K145: Tranchita, Michelle | M145: 800.6 | N145: 372.5 | O145: 613.9 | P145: 1787
A146: Baldwin, Brenda | C146: 98 | D146: 4530 | E146: 136 | F146: W3 | G146: 2 | H146: 55 | I146: 1125 | K146: Baldwin, Brenda | M146: 1245.5 | N146: 1204.5 | O146: 1330.1 | P146: 3780.1
A147: Krueger, Lori | C147: 94.5 | D147: 3020 | E147: 113 | F147: W3 | G147: 4.5 | H147: 55 | I147: 1200 | K147: Krueger, Lori | M147: 1129.4 | N147: 936.4 | O147: 1115.3 | P147: 3181.1
A148: Nagle, Brandy | C148: 91.5 | D148: 4360 | E148: 98 | F148: W3 | G148: 1.5 | H148: 55 | I148: 1200 | K148: Nagle, Brandy | M148: 1035.7 | N148: 1176.2 | O148: 968.4 | P148: 3180.3
A149: Krueger, Julie | C149: 86 | D149: 2550 | E149: 75 | F149: W3 | G149: 2 | H149: 55 | I149: 1300 | K149: Krueger, Julie | M149: 877.4 | N149: 843 | O149: 729.1 | P149: 2449.5
A150: Johnson, Laura | C150: 77 | D150: 1840 | E150: 50 | F150: W3 | G150: 5 | H150: 55 | I150: 1600 | K150: Johnson, Laura | M150: 654.1 | N150: 688.3 | O150: 438.1 | P150: 1780.5
A151: Bergmark, Connie | C151: 86 | D151: 2290 | E151: 93 | F151: W4 | G151: 2 | H151: 55 | I151: 1300 | K151: Bergmark, Connie | M151: 929.7 | N151: 792.9 | O151: 1106.7 | P151: 2829.3
A152: Koenig, Mary | C152: 86 | D152: 2400 | E152: 91 | F152: W4 | G152: 2 | H152: 55 | I152: 1300 | K152: Koenig, Mary | M152: 929.7 | N152: 819.8 | O152: 1079.2 | P152: 2828.7
A153: Abbott, Beverly | C153: 79 | D153: 3400 | E153: 75 | F153: W4 | G153: 1 | H153: 55 | I153: 1425 | K153: Abbott, Beverly | M153: 718.2 | N153: 1050.9 | O153: 857.1 | P153: 2626.2
A154: Knight, Sandy | C154: 85.5 | D154: 2800 | E154: 64 | F154: W4 | G154: 1.5 | H154: 55 | I154: 1300 | K154: Knight, Sandy | M154: 913.3 | N154: 915.1 | O154: 701.8 | P154: 2530.2
A155: Lindsey, Tristina | C155: 86 | D155: 2690 | E155: 60 | F155: W4 | G155: 2 | H155: 55 | I155: 1300 | K155: Lindsey, Tristina | M155: 929.7 | N155: 889.3 | O155: 644.7 | P155: 2463.7
A156: Brooks, Carol | C156: 87.25 | D156: 2160 | E156: 51 | F156: W4 | G156: 3.25 | H156: 55 | I156: 1300 | K156: Brooks, Carol | M156: 971.6 | N156: 760.5 | O156: 514.6 | P156: 2246.7
A157: Olson, Diana | C157: 59.25 | D157: 1830 | E157: 88 | F157: W4 | G157: 5.25 | H157: 52 | I157: 2300 | K157: Olson, Diana | M157: 308.5 | N157: 675.7 | O157: 1037.9 | P157: 2022.1
A158: McCollum, Shelley | C158: 63.5 | D158: 580 | E158: 34 | F158: W4 | G158: 3.5 | H158: 55 | I158: 2300 | K158: McCollum, Shelley | M158: 375.9 | N158: 297.8 | O158: 260.7 | P158: 934.4
A159: Fausold, Janie | C159: 86 | D159: 2780 | E159: 71 | F159: W5 | G159: 2 | H159: 52 | I159: 1200 | K159: Fausold, Janie | M159: 1155.1 | N159: 924.5 | O159: 883.7 | P159: 2963.3
A160: Madden, Janet | C160: 74 | D160: 1440 | E160: 61 | F160: W5 | G160: 2 | H160: 52 | I160: 1425 | K160: Madden, Janet | M160: 649.9 | N160: 543.4 | O160: 715.7 | P160: 1909
A161: Bennett, Anne | C161: 67.5 | D161: 3440 | E161: 34 | F161: W5 | G161: 1.5 | H161: 52 | I161: 1600 | K161: Bennett, Anne | M161: 460.9 | N161: 1098.2 | O161: 273 | P161: 1832.1
A162: Gradick, Debra | C162: 69.5 | D162: 700 | E162: 37 | F162: W5 | G162: 3.5 | H162: 52 | I162: 1600 | K162: Gradick, Debra | M162: 513.6 | N162: 303.4 | O162: 321.1 | P162: 1138.1
A163: Schmitt, Cheryl | C163: 53 | D163: 580 | E163: 0 | F163: W5 | G163: 5 | H163: 49 | I163: 2300 | K163: Schmitt, Cheryl | M163: 198.6 | N163: 260.6 | O163: 0 | P163: 459.2
A164: Harrison, Leza | C164: 86 | D164: 3380 | E164: 87 | F164: W6 | G164: 2 | H164: 52 | I164: 1200 | K164: Harrison, Leza | M164: 1734.8 | N164: 1357.9 | O164: 1588.3 | P164: 4681
A165: Edwards, Prissy | C165: 57.5 | D165: 1360 | E165: 61 | F165: W6 | G165: 3.5 | H165: 52 | I165: 2300 | K165: Edwards, Prissy | M165: 433.6 | N165: 603.9 | O165: 873.7 | P165: 1911.2
A166: Cavenaugh, Brenda | C166: 58 | D166: 1390 | E166: 30 | F166: W6 | G166: 4 | H166: 52 | I166: 2300 | K166: Cavenaugh, Brenda | M166: 446.2 | N166: 615.8 | O166: 210.8 | P166: 1272.8
A167: Prociw, Janice | C167: 67 | D167: 1600 | E167: 31 | F167: W7 | G167: 1 | H167: 49 | I167: 1425 | K167: Prociw, Janice | M167: 864.9 | N167: 810.4 | O167: 279.1 | P167: 1954.4
A168: Fischer, Pat | C168: 5 | D168: 840 | F168: W8 | G168: 5 | H168: 25 | I168: 2300 | K168: Fischer, Pat | M168: 40 | N168: 592.7 | O168: 0 | P168: 632.7
A169: Morris, Loretta | C169: 2 | D169: 160 | F169: W9 | G169: 2 | H169: 25 | I169: 2300 | K169: Morris, Loretta | M169: 16 | N169: 177.1 | O169: 0 | P169: 193.1
A170: Price, Artis | C170: 1 | D170: 660 | F170: WA | G170: 1 | H170: 25 | I170: 2300 | K170: Price, Artis | M170: 8 | N170: 927.2 | O170: 0 | P170: 935.2

Sheet NatsData11
A1: Skier | C1: S | D1: T | E1: J | F1: Div | G1: Slalom result | K1: Skier | M1: S nops | N1: T nops | O1: J nops | P1: NOPS
A2: Warner, Ryan | C2: 74 | D2: 2480 | F2: B1 | G2: 2 | H2: 49 | I2: 1300 | K2: Warner, Ryan | M2: 1383.2 | N2: 1232.3 | O2: 0 | P2: 2615.5
A3: Butterfield, Zachary | C3: 56 | D3: 1350 | F3: B1 | G3: 2 | H3: 49 | I3: 1825 | K3: Butterfield, Zachary | M3: 1078.2 | N3: 970.3 | O3: 0 | P3: 2048.5
A4: Keller, Blake | C4: 62.5 | D4: 570 | F4: B1 | G4: 2.5 | H4: 49 | I4: 1600 | K4: Keller, Blake | M4: 1189.2 | N4: 691.4 | O4: 0 | P4: 1880.6
A5: Stange, Griffin | C5: 49.5 | D5: 820 | F5: B1 | G5: 1.5 | H5: 49 | I5: 2300 | K5: Stange, Griffin | M5: 966 | N5: 797.7 | O5: 0 | P5: 1763.7
A6: Roberts, Edward | C6: 46.5 | D6: 820 | F6: B1 | G6: 4.5 | H6: 46 | I6: 2300 | K6: Roberts, Edward | M6: 913.7 | N6: 797.7 | O6: 0 | P6: 1711.4
A7: Gay, Ryan | C7: 40.5 | D7: 1120 | F7: B1 | G7: 4.5 | H7: 43 | I7: 2300 | K7: Gay, Ryan | M7: 808.3 | N7: 901.6 | O7: 0 | P7: 1709.9
A8: Collins, Austin | C8: 48 | D8: 700 | F8: B1 | G8: 6 | H8: 46 | I8: 2300 | K8: Collins, Austin | M8: 939.9 | N8: 749.6 | O8: 0 | P8: 1689.5
A9: Mccormick, Noah | C9: 45 | D9: 760 | F9: B1 | G9: 3 | H9: 46 | I9: 2300 | K9: Mccormick, Noah | M9: 887.5 | N9: 774.2 | O9: 0 | P9: 1661.7
A10: Cirilli, Rocco | C10: 52 | D10: 290 | F10: B1 | G10: 4 | H10: 49 | I10: 2300 | K10: Cirilli, Rocco | M10: 1009.3 | N10: 530.2 | O10: 0 | P10: 1539.5
A11: Roberts, William | C11: 50 | D11: 290 | F11: B1 | G11: 2 | H11: 49 | I11: 2300 | K11: Roberts, William | M11: 974.6 | N11: 530.2 | O11: 0 | P11: 1504.8
A12: Garcia, Taylor | C12: 96.5 | D12: 4280 | E12: 142 | F12: B2 | G12: 0.5 | H12: 55 | I12: 1125 | K12: Garcia, Taylor | M12: 1310.1 | N12: 1156.5 | O12: 1634.4 | P12: 4101
A13: Lang, Nicholas | C13: 95.5 | D13: 5340 | E13: 127 | F13: B2 | G13: 5.5 | H13: 55 | I13: 1200 | K13: Lang, Nicholas | M13: 1285.7 | N13: 1271.1 | O13: 1450.8 | P13: 4007.6
A14: Guyer, Corbin | C14: 87 | D14: 3580 | E14: 119 | F14: B2 | G14: 3 | H14: 55 | I14: 1300 | K14: Guyer, Corbin | M14: 1086.3 | N14: 1071.6 | O14: 1352 | P14: 3509.9
A15: MacIntyre, Zachary | C15: 82 | D15: 4650 | E15: 84 | F15: B2 | G15: 4 | H15: 55 | I15: 1425 | K15: MacIntyre, Zachary | M15: 976.2 | N15: 1198.2 | O15: 910.2 | P15: 3084.6
A16: Montavon, William | C16: 87 | D16: 5610 | E16: 55 | F16: B2 | G16: 3 | H16: 55 | I16: 1300 | K16: Montavon, William | M16: 1086.3 | N16: 1298.1 | O16: 527.4 | P16: 2911.8
A17: Canepa, Ryan | C17: 79.5 | D17: 2580 | E17: 86 | F17: B2 | G17: 1.5 | H17: 55 | I17: 1425 | K17: Canepa, Ryan | M17: 923.1 | N17: 931.7 | O17: 936 | P17: 2790.8
A18: Porter, Jordan | C18: 77.25 | D18: 1140 | E18: 98 | F18: B2 | G18: 5.25 | H18: 55 | I18: 1600 | K18: Porter, Jordan | M18: 876.5 | N18: 657.4 | O18: 1089 | P18: 2622.9
A19: Carl, Andrew | C19: 84.5 | D19: 2100 | E19: 65 | F19: B2 | G19: 0.5 | H19: 55 | I19: 1300 | K19: Carl, Andrew | M19: 1030.6 | N19: 853.3 | O19: 661.8 | P19: 2545.7
A20: Parker, Cullen | C20: 79.5 | D20: 1530 | E20: 79 | F20: B2 | G20: 1.5 | H20: 55 | I20: 1425 | K20: Parker, Cullen | M20: 923.1 | N20: 745.4 | O20: 845.6 | P20: 2514.1
A21: Bridgford, Ryan | C21: 82 | D21: 1870 | E21: 66 | F21: B2 | G21: 4 | H21: 55 | I21: 1425 | K21: Bridgford, Ryan | M21: 976.2 | N21: 812.1 | O21: 675 | P21: 2463.3
A22: Brooks, Steven | C22: 99 | D22: 5840 | E22: 153 | F22: B3 | G22: 3 | H22: 58 | I22: 1200 | K22: Brooks, Steven | M22: 909.5 | N22: 1130.3 | O22: 1168.1 | P22: 3207.9
A23: Greenwood, Samuel | C23: 98.5 | D23: 3810 | E23: 154 | F23: B3 | G23: 2.5 | H23: 58 | I23: 1200 | K23: Greenwood, Samuel | M23: 894.8 | N23: 917.6 | O23: 1176.9 | P23: 2989.3
A24: Peterson, Dustin | C24: 88.5 | D24: 4250 | E24: 149 | F24: B3 | G24: 4.5 | H24: 58 | I24: 1425 | K24: Peterson, Dustin | M24: 635.5 | N24: 967.9 | O24: 1132.8 | P24: 2736.2
A25: Mechler, Mason | C25: 91.5 | D25: 4830 | E25: 120 | F25: B3 | G25: 1.5 | H25: 58 | I25: 1300 | K25: Mechler, Mason | M25: 706.5 | N25: 1030.2 | O25: 874.6 | P25: 2611.3
A26: DeVito, Christian | C26: 93 | D26: 5120 | E26: 110 | F26: B3 | G26: 3 | H26: 58 | I26: 1300 | K26: DeVito, Christian | M26: 744.1 | N26: 1060 | O26: 784.5 | P26: 2588.6
A27: Mechler, Dane | C27: 94.5 | D27: 3280 | E27: 128 | F27: B3 | G27: 4.5 | H27: 58 | I27: 1300 | K27: Mechler, Dane | M27: 783.2 | N27: 852.9 | O27: 946.3 | P27: 2582.4
A28: Newton, Nick | C28: 93.5 | D28: 2830 | E28: 117 | F28: B3 | G28: 3.5 | H28: 58 | I28: 1300 | K28: Newton, Nick | M28: 757 | N28: 793.7 | O28: 847.7 | P28: 2398.4
A29: Evatt, Hank | C29: 93 | D29: 2180 | E29: 126 | F29: B3 | G29: 3 | H29: 58 | I29: 1300 | K29: Evatt, Hank | M29: 744.1 | N29: 698.8 | O29: 928.4 | P29: 2371.3
A30: Detty, Briant | C30: 91.5 | D30: 1680 | E30: 132 | F30: B3 | G30: 1.5 | H30: 58 | I30: 1300 | K30: Detty, Briant | M30: 706.5 | N30: 615.3 | O30: 982 | P30: 2303.8
A31: McCormick, Cole | C31: 93.5 | D31: 4540 | E31: 84 | F31: B3 | G31: 3.5 | H31: 58 | I31: 1300 | K31: McCormick, Cole | M31: 757 | N31: 999.6 | O31: 546.7 | P31: 2303.3
A32: Ross, Neilly | C32: 67.5 | D32: 5320 | F32: G1 | G32: 1.5 | H32: 49 | I32: 1425 | K32: Ross, Neilly | M32: 1348.4 | N32: 1628.8 | O32: 0 | P32: 2977.2
A33: Baldwin, Kristen | C33: 69 | D33: 3670 | F33: G1 | G33: 3 | H33: 49 | I33: 1425 | K33: Baldwin, Kristen | M33: 1368.2 | N33: 1386.4 | O33: 0 | P33: 2754.6
A34: Grathwohl, Bailey | C34: 52 | D34: 2450 | F34: G1 | G34: 4 | H34: 49 | I34: 2300 | K34: Grathwohl, Bailey | M34: 1135.9 | N34: 1163.4 | O34: 0 | P34: 2299.3
A35: Morgan, Mia | C35: 31.5 | D35: 2780 | F35: G1 | G35: 1.5 | H35: 40 | I35: 2300 | K35: Morgan, Mia | M35: 821.4 | N35: 1229 | O35: 0 | P35: 2050.4
A36: Montgomery, Ashley | C36: 69 | D36: 660 | F36: G1 | G36: 3 | H36: 49 | I36: 1425 | K36: Montgomery, Ashley | M36: 1368.2 | N36: 658.4 | O36: 0 | P36: 2026.6
A37: Kosek, Tianna | C37: 65 | D37: 510 | F37: G1 | G37: 5 | H37: 49 | I37: 1600 | K37: Kosek, Tianna | M37: 1315.2 | N37: 588.7 | O37: 0 | P37: 1903.9
A38: Parker, Caroline | C38: 44 | D38: 920 | F38: G1 | G38: 2 | H38: 46 | I38: 2300 | K38: Parker, Caroline | M38: 1018.8 | N38: 760.5 | O38: 0 | P38: 1779.3
A39: Newman, Charlsey | C39: 43.5 | D39: 660 | F39: G1 | G39: 1.5 | H39: 46 | I39: 2300 | K39: Newman, Charlsey | M39: 1011.3 | N39: 658.4 | O39: 0 | P39: 1669.7
A40: Stange, Parker | C40: 47 | D40: 500 | F40: G1 | G40: 5 | H40: 46 | I40: 2300 | K40: Stange, Parker | M40: 1063.4 | N40: 583.7 | O40: 0 | P40: 1647.1
A41: Grathwohl, Allyson | C41: 14 | D41: 1660 | F41: G1 | G41: 2 | H41: 31 | I41: 2300 | K41: Grathwohl, Allyson | M41: 488.6 | N41: 982.6 | O41: 0 | P41: 1471.2
A42: Warner, Kat | C42: 85 | D42: 2570 | E42: 93 | F42: G2 | G42: 1 | H42: 52 | I42: 1200 | K42: Warner, Kat | M42: 1245.6 | N42: 952 | O42: 1203.6 | P42: 3401.2
A43: Baldwin, Brooke | C43: 79 | D43: 5210 | E43: 72 | F43: G2 | G43: 1 | H43: 52 | I43: 1300 | K43: Baldwin, Brooke | M43: 1070.8 | N43: 1325.1 | O43: 951.3 | P43: 3347.2
A44: Grathwohl, Abbi | C44: 86 | D44: 2580 | E44: 82 | F44: G2 | G44: 2 | H44: 52 | I44: 1200 | K44: Grathwohl, Abbi | M44: 1276.1 | N44: 953.7 | O44: 1074.4 | P44: 3304.2
A45: Boskus, Julianna | C45: 80.5 | D45: 4110 | E45: 73 | F45: G2 | G45: 2.5 | H45: 52 | I45: 1300 | K45: Boskus, Julianna | M45: 1113.2 | N45: 1185.9 | O45: 963.9 | P45: 3263
A46: Gay, Anna | C46: 76.5 | D46: 5750 | E46: 60 | F46: G2 | G46: 4.5 | H46: 52 | I46: 1425 | K46: Gay, Anna | M46: 1002.1 | N46: 1387.7 | O46: 794.7 | P46: 3184.5
A47: Butterfield, Krista | C47: 79.5 | D47: 3940 | E47: 63 | F47: G2 | G47: 1.5 | H47: 52 | I47: 1300 | K47: Butterfield, Krista | M47: 1084.9 | N47: 1162.7 | O47: 834.9 | P47: 3082.5
A48: Nicholson, Allie | C48: 87.5 | D48: 730 | E48: 61 | F48: G2 | G48: 3.5 | H48: 52 | I48: 1200 | K48: Nicholson, Allie | M48: 1322.5 | N48: 528.2 | O48: 808.2 | P48: 2658.9
A49: Morgan, Emma | C49: 67 | D49: 2660 | E49: 55 | F49: G2 | G49: 1 | H49: 52 | I49: 1600 | K49: Morgan, Emma | M49: 762.6 | N49: 967.4 | O49: 725.7 | P49: 2455.7
A50: Grathwohl, Taylor | C50: 66.5 | D50: 2750 | E50: 41 | F50: G2 | G50: 0.5 | H50: 52 | I50: 1600 | K50: Grathwohl, Taylor | M50: 750.9 | N50: 982.6 | O50: 516.3 | P50: 2249.8
A51: Horton, Katie | C51: 69 | D51: 1750 | E51: 45 | F51: G2 | G51: 3 | H51: 52 | I51: 1600 | K51: Horton, Katie | M51: 810.1 | N51: 795.3 | O51: 579.1 | P51: 2184.5
A52: Lang, Erika | C52: 91.5 | D52: 8990 | E52: 109 | F52: G3 | G52: 1.5 | H52: 55 | I52: 1200 | K52: Lang, Erika | M52: 1117 | N52: 1628.7 | O52: 1070.1 | P52: 3815.8
A53: Haw, Makayla | C53: 93 | D53: 3820 | E53: 137 | F53: G3 | G53: 3 | H53: 55 | I53: 1200 | K53: Haw, Makayla | M53: 1178.8 | N53: 1017.2 | O53: 1359.4 | P53: 3555.4
A54: MacIntyre, Kara | C54: 92 | D54: 4900 | E54: 91 | F54: G3 | G54: 2 | H54: 55 | I54: 1200 | K54: MacIntyre, Kara | M54: 1137.3 | N54: 1166.5 | O54: 876.9 | P54: 3180.7
A55: Guyer, Carli | C55: 87 | D55: 3970 | E55: 106 | F55: G3 | G55: 3 | H55: 55 | I55: 1300 | K55: Guyer, Carli | M55: 945.6 | N55: 1039 | O55: 1038.4 | P55: 3023
A56: Morris, Jaye | C56: 85 | D56: 2580 | E56: 115 | F56: G3 | G56: 1 | H56: 55 | I56: 1300 | K56: Morris, Jaye | M56: 876 | N56: 819.7 | O56: 1133.2 | P56: 2828.9
A57: Waitt, Julia | C57: 86 | D57: 2420 | E57: 92 | F57: G3 | G57: 2 | H57: 55 | I57: 1300 | K57: Waitt, Julia | M57: 910.3 | N57: 791.4 | O57: 887.8 | P57: 2589.5
A58: Morgan, Jenna | C58: 76 | D58: 3840 | E58: 88 | F58: G3 | G58: 4 | H58: 55 | I58: 1600 | K58: Morgan, Jenna | M58: 608.1 | N58: 1020.2 | O58: 844 | P58: 2472.3
A59: Daulton, Riley | C59: 82.5 | D59: 1820 | E59: 98 | F59: G3 | G59: 4.5 | H59: 55 | I59: 1425 | K59: Daulton, Riley | M59: 794.3 | N59: 676.6 | O59: 952.8 | P59: 2423.7
A60: Horton, Ellie | C60: 62.5 | D60: 4560 | E60: 99 | F60: G3 | G60: 2.5 | H60: 55 | I60: 2300 | K60: Horton, Ellie | M60: 328.3 | N60: 1121.3 | O60: 963.6 | P60: 2413.2
A61: Schneider, Madison | C61: 80 | D61: 1560 | E61: 87 | F61: G3 | G61: 2 | H61: 55 | I61: 1425 | K61: Schneider, Madison | M61: 718.3 | N61: 621.6 | O61: 833 | P61: 2172.9
A62: Seal, Stephen | C62: 101.5 | D62: 5810 | E62: 180 | F62: M1 | G62: 5.5 | H62: 58 | I62: 1200 | K62: Seal, Stephen | M62: 925.7 | N62: 1124.5 | O62: 1254.9 | P62: 3305.1
A63: Stevenson, Michael | C63: 100.5 | D63: 5750 | E63: 170 | F63: M1 | G63: 4.5 | H63: 58 | I63: 1200 | K63: Stevenson, Michael | M63: 898.4 | N63: 1119.3 | O63: 1161.8 | P63: 3179.5
A64: Wintter, Skip | C64: 96.5 | D64: 5830 | E64: 159 | F64: M1 | G64: 0.5 | H64: 58 | I64: 1200 | K64: Wintter, Skip | M64: 795.2 | N64: 1126.2 | O64: 1060.3 | P64: 2981.7
A65: Schaffer, Dylan | C65: 99 | D65: 5460 | E65: 152 | F65: M1 | G65: 3 | H65: 58 | I65: 1200 | K65: Schaffer, Dylan | M65: 858.7 | N65: 1093.7 | O65: 996.2 | P65: 2948.6
A66: Van Treese, Benjamin | C66: 89 | D66: 3120 | E66: 153 | F66: M1 | G66: 5 | H66: 58 | I66: 1425 | K66: Van Treese, Benjamin | M66: 624.8 | N66: 851.6 | O66: 1005.3 | P66: 2481.7
A67: Paulovich, Jonathan | C67: 91.5 | D67: 1550 | E67: 168 | F67: M1 | G67: 1.5 | H67: 58 | I67: 1300 | K67: Paulovich, Jonathan | M67: 678.4 | N67: 622.9 | O67: 1143.3 | P67: 2444.6
A68: Cole, Randall | C68: 102.5 | D68: 1660 | E68: 133 | F68: M1 | G68: 0.5 | H68: 58 | I68: 1125 | K68: Cole, Randall | M68: 953.4 | N68: 642.3 | O68: 824.3 | P68: 2420
A69: Karber, Garrett | C69: 91.5 | D69: 2580 | E69: 139 | F69: M1 | G69: 1.5 | H69: 58 | I69: 1300 | K69: Karber, Garrett | M69: 678.4 | N69: 782.3 | O69: 878.2 | P69: 2338.9
A70: Shipanock, Adam | C70: 93.5 | D70: 1860 | E70: 133 | F70: M1 | G70: 3.5 | H70: 58 | I70: 1300 | K70: Shipanock, Adam | M70: 723.5 | N70: 675.8 | O70: 824.3 | P70: 2223.6
A71: Zimmerman, Kyle | C71: 95 | D71: 1620 | E71: 120 | F71: M1 | G71: 5 | H71: 58 | I71: 1300 | K71: Zimmerman, Kyle | M71: 758.8 | N71: 635.3 | O71: 708.6 | P71: 2102.7
A72: Burris, John | C72: 97 | D72: 5570 | E72: 197 | F72: M2 | G72: 1 | H72: 58 | I72: 1200 | K72: Burris, John | M72: 779.1 | N72: 1057.1 | O72: 1325.4 | P72: 3161.6
A73: Kalkbrenner, Cole | C73: 94 | D73: 2940 | E73: 167 | F73: M2 | G73: 4 | H73: 58 | I73: 1300 | K73: Kalkbrenner, Cole | M73: 711.9 | N73: 787.4 | O73: 1055.2 | P73: 2554.5
A74: Eller, Christophe | C74: 99 | D74: 1730 | E74: 161 | F74: M2 | G74: 3 | H74: 58 | I74: 1200 | K74: Eller, Christophe | M74: 826.3 | N74: 616.6 | O74: 1002.1 | P74: 2445
A75: Klingbeil, Kevin | C75: 94 | D75: 1780 | E75: 125 | F75: M2 | G75: 4 | H75: 58 | I75: 1300 | K75: Klingbeil, Kevin | M75: 711.9 | N75: 624.8 | O75: 690.7 | P75: 2027.4
A76: Tranchita, James | C76: 94.5 | D76: 960 | E76: 140 | F76: M2 | G76: 4.5 | H76: 58 | I76: 1300 | K76: Tranchita, James | M76: 722.8 | N76: 470 | O76: 818.8 | P76: 2011.6
A77: Weeks, Aaron | C77: 81 | D77: 1810 | E77: 133 | F77: M2 | G77: 3 | H77: 58 | I77: 1600 | K77: Weeks, Aaron | M77: 467.1 | N77: 629.6 | O77: 758.7 | P77: 1855.4
A78: Kodiak, Cris | C78: 81 | D78: 1160 | E78: 122 | F78: M2 | G78: 3 | H78: 58 | I78: 1600 | K78: Kodiak, Cris | M78: 467.1 | N78: 512.8 | O78: 665.4 | P78: 1645.3
A79: Ithomitis, Nick | C79: 95 | D79: 200 | E79: 124 | F79: M2 | G79: 5 | H79: 58 | I79: 1300 | K79: Ithomitis, Nick | M79: 733.8 | N79: 228.1 | O79: 682.3 | P79: 1644.2
A80: Withrow, Kevin | C80: 92.5 | D80: 3180 | E80: 149 | F80: M3 | G80: 2.5 | H80: 55 | I80: 1200 | K80: Withrow, Kevin | M80: 628.3 | N80: 804.6 | O80: 1082 | P80: 2514.9
A81: Knight, Tony | C81: 92.5 | D81: 3720 | E81: 140 | F81: M3 | G81: 2.5 | H81: 55 | I81: 1200 | K81: Knight, Tony | M81: 628.3 | N81: 865.7 | O81: 954.8 | P81: 2448.8
A82: Roeder, John | C82: 89 | D82: 970 | E82: 137 | F82: M3 | G82: 5 | H82: 55 | I82: 1300 | K82: Roeder, John | M82: 526.4 | N82: 462.1 | O82: 913.8 | P82: 1902.3
A83: Whetsel, Kirby | C83: 85.5 | D83: 1950 | E83: 119 | F83: M3 | G83: 1.5 | H83: 55 | I83: 1300 | K83: Whetsel, Kirby | M83: 439.1 | N83: 640.3 | O83: 682.7 | P83: 1762.1
A84: Friese, Mark | C84: 86 | D84: 1730 | E84: 108 | F84: M3 | G84: 2 | H84: 55 | I84: 1300 | K84: Friese, Mark | M84: 450.7 | N84: 605.5 | O84: 554.8 | P84: 1611
A85: Hatch, Eric | C85: 80 | D85: 1600 | E85: 92 | F85: M3 | G85: 2 | H85: 55 | I85: 1425 | K85: Hatch, Eric | M85: 327.7 | N85: 583.8 | O85: 387.8 | P85: 1299.3
A86: Kodiak, Chad | C86: 74 | D86: 1440 | E86: 78 | F86: M3 | G86: 2 | H86: 55 | I86: 1600 | K86: Kodiak, Chad | M86: 236.4 | N86: 555.8 | O86: 261.5 | P86: 1053.7
A87: Cawthern, James | C87: 1.5 | D87: 570 | E87: 58 | F87: M3 | G87: 1.5 | H87: 25 | I87: 2300 | K87: Cawthern, James | M87: 12 | N87: 360.5 | O87: 117 | P87: 489.5
A88: Newman, Thomas | C88: 93.5 | D88: 2370 | E88: 149 | F88: M4 | G88: 3.5 | H88: 55 | I88: 1200 | K88: Newman, Thomas | M88: 662.1 | N88: 706.9 | O88: 1256.6 | P88: 2625.6
A89: Grau, Mitch | C89: 92.5 | D89: 2290 | E89: 148 | F89: M4 | G89: 2.5 | H89: 55 | I89: 1200 | K89: Grau, Mitch | M89: 629.7 | N89: 694.7 | O89: 1244.6 | P89: 2569
A90: Young, Barry | C90: 98.5 | D90: 2870 | E90: 121 | F90: M4 | G90: 2.5 | H90: 55 | I90: 1125 | K90: Young, Barry | M90: 846.3 | N90: 779.1 | O90: 927.9 | P90: 2553.3
A91: Haines, Hutch | C91: 98.5 | D91: 830 | E91: 146 | F91: M4 | G91: 2.5 | H91: 55 | I91: 1125 | K91: Haines, Hutch | M91: 846.3 | N91: 414.9 | O91: 1220.7 | P91: 2481.9
A92: Estes, Robbie | C92: 94.5 | D92: 2780 | E92: 128 | F92: M4 | G92: 4.5 | H92: 55 | I92: 1200 | K92: Estes, Robbie | M92: 695.9 | N92: 766.6 | O92: 1008.6 | P92: 2471.1
A93: Cirilli, Bill | C93: 94 | D93: 2400 | E93: 130 | F93: M4 | G93: 4 | H93: 55 | I93: 1200 | K93: Cirilli, Bill | M93: 678.8 | N93: 711.5 | O93: 1031.9 | P93: 2422.2
A94: Webb, Greg | C94: 87.5 | D94: 1560 | E94: 144 | F94: M4 | G94: 3.5 | H94: 55 | I94: 1300 | K94: Webb, Greg | M94: 487.2 | N94: 571.6 | O94: 1196.8 | P94: 2255.6
A95: Anderson, Eric | C95: 91.5 | D95: 1070 | E95: 142 | F95: M4 | G95: 1.5 | H95: 55 | I95: 1200 | K95: Anderson, Eric | M95: 598.6 | N95: 472 | O95: 1173 | P95: 2243.6
A96: Tipich, John | C96: 93 | D96: 890 | E96: 138 | F96: M4 | G96: 3 | H96: 55 | I96: 1200 | K96: Tipich, John | M96: 645.7 | N96: 429.8 | O96: 1125.7 | P96: 2201.2
A97: Grisham, Thomas | C97: 87 | D97: 2850 | E97: 117 | F97: M4 | G97: 3 | H97: 55 | I97: 1300 | K97: Grisham, Thomas | M97: 474.6 | N97: 776.4 | O97: 882.3 | P97: 2133.3
A98: Miller, Stephen | C98: 98 | D98: 2600 | E98: 131 | F98: M5 | G98: 2 | H98: 55 | I98: 1125 | K98: Miller, Stephen | M98: 888.3 | N98: 783.5 | O98: 1236.1 | P98: 2907.9
A99: Smith, Jeffrey | C99: 88 | D99: 3110 | E99: 120 | F99: M5 | G99: 4 | H99: 55 | I99: 1300 | K99: Smith, Jeffrey | M99: 540.4 | N99: 915.4 | O99: 1099.6 | P99: 2555.4
A100: Norton, Joel | C100: 86.5 | D100: 2440 | E100: 128 | F100: M5 | G100: 2.5 | H100: 55 | I100: 1300 | K100: Norton, Joel | M100: 500 | N100: 741.4 | O100: 1198.7 | P100: 2440.1
A101: Wallace, Ham | C101: 96.5 | D101: 740 | E101: 126 | F101: M5 | G101: 0.5 | H101: 55 | I101: 1125 | K101: Wallace, Ham | M101: 826.5 | N101: 262.9 | O101: 1173.9 | P101: 2263.3
A102: Laderer, Edward | C102: 97 | D102: 2830 | E102: 76 | F102: M5 | G102: 1 | H102: 55 | I102: 1125 | K102: Laderer, Edward | M102: 846.7 | N102: 843.3 | O102: 569.7 | P102: 2259.7
A103: Zimlich, Carey | C103: 86 | D103: 2110 | E103: 118 | F103: M5 | G103: 2 | H103: 55 | I103: 1300 | K103: Zimlich, Carey | M103: 487.1 | N103: 653.4 | O103: 1075 | P103: 2215.5
A104: Holm, Brian | C104: 93 | D104: 1080 | E104: 121 | F104: M5 | G104: 3 | H104: 55 | I104: 1200 | K104: Holm, Brian | M104: 696.2 | N104: 365.1 | O104: 1112 | P104: 2173.3
A105: Archambeau, Robert | C105: 92 | D105: 860 | E105: 115 | F105: M5 | G105: 2 | H105: 55 | I105: 1200 | K105: Archambeau, Robert | M105: 662.3 | N105: 299.6 | O105: 1038.1 | P105: 2000
A106: Johnson, Dee | C106: 85.5 | D106: 1440 | E106: 114 | F106: M5 | G106: 1.5 | H106: 55 | I106: 1300 | K106: Johnson, Dee | M106: 474.5 | N106: 468.8 | O106: 1025.8 | P106: 1969.1
A107: Vandyk, Daniel | C107: 91 | D107: 710 | E107: 61 | F107: M5 | G107: 1 | H107: 55 | I107: 1200 | K107: Vandyk, Daniel | M107: 629.8 | N107: 253.6 | O107: 396.9 | P107: 1280.3
A108: Bass, Sarvis | C108: 88 | D108: 1550 | E108: 65 | F108: M6 | G108: 4 | H108: 55 | I108: 1300 | K108: Bass, Sarvis | M108: 820.1 | N108: 595.1 | O108: 640.9 | P108: 2056.1
A109: Hayes, Michael | C109: 87.25 | D109: 780 | E109: 43 | F109: M6 | G109: 3.25 | H109: 55 | I109: 1300 | K109: Hayes, Michael | M109: 795.4 | N109: 301.3 | O109: 307.9 | P109: 1404.6
A110: Scharpf, Tad | C110: 3 | D110: 1100 | E110: 61 | F110: M6 | G110: 3 | H110: 25 | I110: 2300 | K110: Scharpf, Tad | M110: 24 | N110: 423.6 | O110: 577.6 | P110: 1025.2
A111: Bucher, Don | C111: 79.5 | D111: 780 | E111: 0 | F111: M6 | G111: 1.5 | H111: 55 | I111: 1425 | K111: Bucher, Don | M111: 572 | N111: 301.3 | O111: 0 | P111: 873.3
A112: Cooper, William | C112: 4.5 | D112: 1010 | E112: 0 | F112: M6 | G112: 4.5 | H112: 25 | I112: 2300 | K112: Cooper, William | M112: 36 | N112: 389.3 | O112: 0 | P112: 425.3
A113: Burkhead, Joe | C113: 0 | D113: 890 | E113: 0 | F113: M6 | G113: 0 | H113: 25 | I113: 2300 | K113: Burkhead, Joe | M113: 0 | N113: 343.4 | O113: 0 | P113: 343.4
A114: Longo, Dennis | C114: 87 | D114: 1680 | E114: 75 | F114: M7 | G114: 3 | H114: 52 | I114: 1200 | K114: Longo, Dennis | M114: 848.4 | N114: 730.5 | O114: 897.8 | P114: 2476.7
A115: Reid, Glen | C115: 57.5 | D115: 1160 | E115: 45 | F115: M7 | G115: 3.5 | H115: 52 | I115: 2300 | K115: Reid, Glen | M115: 93.7 | N115: 524.2 | O115: 421.7 | P115: 1039.6
A116: Nichols, Edson | C116: 58 | D116: 470 | E116: 39 | F116: M7 | G116: 4 | H116: 52 | I116: 2300 | K116: Nichols, Edson | M116: 96.6 | N116: 233.3 | O116: 328.6 | P116: 658.5
A117: Svoboda, Ron | C117: 1 | D117: 200 | E117: 0 | F117: M7 | G117: 1 | H117: 25 | I117: 2300 | K117: Svoboda, Ron | M117: 8 | N117: 108.5 | O117: 0 | P117: 116.5
A118: Piercy, Carrol | C118: 74.5 | D118: 1830 | E118: 51 | F118: M8 | G118: 2.5 | H118: 49 | I118: 1300 | K118: Piercy, Carrol | M118: 700 | N118: 1089.1 | O118: 669.6 | P118: 2458.7
A119: Hosner, Jerry | C119: 80 | D119: 1010 | E119: 34 | F119: M8 | G119: 2 | H119: 49 | I119: 1200 | K119: Hosner, Jerry | M119: 962.2 | N119: 567.4 | O119: 351.4 | P119: 1881
A120: Kunde, Bruce | C120: 69.5 | D120: 1440 | E120: 0 | F120: M8 | G120: 3.5 | H120: 49 | I120: 1425 | K120: Kunde, Bruce | M120: 515.9 | N120: 837.3 | O120: 0 | P120: 1353.2
A121: Holmes, Chuck | C121: 4.5 | D121: 700 | E121: 43 | F121: M8 | G121: 4.5 | H121: 25 | I121: 2300 | K121: Holmes, Chuck | M121: 36 | N121: 379.5 | O121: 518.8 | P121: 934.3
A122: Bryant, Errol | C122: 70 | D122: 210 | F122: M8 | G122: 4 | H122: 49 | I122: 1425 | K122: Bryant, Errol | M122: 532.2 | N122: 101.3 | O122: 0 | P122: 633.5
A123: Wahl, Roger | C123: 2 | D123: 450 | F123: M9 | G123: 2 | H123: 25 | I123: 2300 | K123: Wahl, Roger | M123: 16 | N123: 293.2 | O123: 0 | P123: 309.2
A124: Faulkner, Elgin | C124: 3 | E124: 43 | F124: MA | G124: 3 | H124: 25 | I124: 2300 | K124: Faulkner, Elgin | M124: 24 | N124: 0 | O124: 1301.4 | P124: 1325.4
A125: Price, Harry | C125: 38 | D125: 480 | E125: 26 | F125: MA | G125: 2 | H125: 43 | I125: 2300 | K125: Price, Harry | M125: 455.6 | N125: 480.8 | O125: 244 | P125: 1180.4
A126: Horton, John | C126: 1 | D126: 180 | E126: 29 | F126: MA | G126: 1 | H126: 25 | I126: 2300 | K126: Horton, John | M126: 8 | N126: 190.3 | O126: 357.9 | P126: 556.2
A127: Schouten, Bill | C127: 2 | D127: 300 | F127: MA | G127: 2 | H127: 25 | I127: 2300 | K127: Schouten, Bill | M127: 16 | N127: 308.4 | O127: 0 | P127: 324.4
A128: Phelps, Ronald | C128: 2.5 | D128: 160 | F128: MA | G128: 2.5 | H128: 25 | I128: 2300 | K128: Phelps, Ronald | M128: 20 | N128: 170.3 | O128: 0 | P128: 190.3
A129: Lorenz, Tyler | C129: 102.5 | D129: 4980 | E129: 183 | F129: OM | G129: 0.5 | H129: 58 | I129: 1125 | K129: Lorenz, Tyler | M129: 913.6 | N129: 999.1 | O129: 1067.3 | P129: 2980
A130: Selsor, Storm | C130: 96.5 | D130: 5900 | E130: 176 | F130: OM | G130: 0.5 | H130: 58 | I130: 1200 | K130: Selsor, Storm | M130: 767.6 | N130: 1080 | O130: 1019.3 | P130: 2866.9
A131: Surdej, Jeff | C131: 92.5 | D131: 3900 | E131: 156 | F131: OM | G131: 2.5 | H131: 58 | I131: 1300 | K131: Surdej, Jeff | M131: 679.8 | N131: 893.1 | O131: 881.3 | P131: 2454.2
A132: Malak, Kevin | C132: 87.5 | D132: 1770 | E132: 150 | F132: OM | G132: 3.5 | H132: 58 | I132: 1425 | K132: Malak, Kevin | M132: 580.3 | N132: 621.5 | O132: 839.6 | P132: 2041.4
A133: Todd-strickl, Joy | C133: 92 | D133: 6900 | E133: 140 | F133: OW | G133: 2 | H133: 55 | I133: 1200 | K133: Todd-strickl, Joy | M133: 1007.1 | N133: 1294.6 | O133: 1162.8 | P133: 3464.5
A134: Lauretano, Alex | C134: 88 | D134: 8680 | E134: 127 | F134: OW | G134: 4 | H134: 55 | I134: 1300 | K134: Lauretano, Alex | M134: 907.6 | N134: 1493.6 | O134: 1039.2 | P134: 3440.4
A135: Morgan, Lauren | C135: 86 | D135: 4270 | E135: 150 | F135: OW | G135: 2 | H135: 55 | I135: 1300 | K135: Morgan, Lauren | M135: 860.2 | N135: 960 | O135: 1257.2 | P135: 3077.4
A136: Mcclure, Keri | C136: 99 | D136: 3530 | E136: 123 | F136: W1 | G136: 3 | H136: 55 | I136: 1125 | K136: Mcclure, Keri | M136: 1245.5 | N136: 997.4 | O136: 1221.6 | P136: 3464.5
A137: Lindy, Alison | C137: 92 | D137: 3700 | E137: 116 | F137: W1 | G137: 2 | H137: 55 | I137: 1200 | K137: Lindy, Alison | M137: 1081.1 | N137: 1019.4 | O137: 1157.7 | P137: 3258.2
A138: Rogers, Krista | C138: 86.5 | D138: 2090 | E138: 137 | F138: W1 | G138: 2.5 | H138: 55 | I138: 1300 | K138: Rogers, Krista | M138: 960 | N138: 781.7 | O138: 1345.9 | P138: 3087.6
A139: Mcclure, Kayla | C139: 88 | D139: 2570 | E139: 116 | F139: W1 | G139: 4 | H139: 55 | I139: 1300 | K139: Mcclure, Kayla | M139: 992.3 | N139: 860.5 | O139: 1157.7 | P139: 3010.5
A140: Seal, Monica | C140: 82 | D140: 2270 | E140: 125 | F140: W1 | G140: 4 | H140: 55 | I140: 1425 | K140: Seal, Monica | M140: 866.2 | N140: 812.3 | O140: 1239.6 | P140: 2918.1
A141: Backlund, Caley | C141: 75.5 | D141: 870 | E141: 112 | F141: W1 | G141: 3.5 | H141: 55 | I141: 1600 | K141: Backlund, Caley | M141: 739.1 | N141: 520 | O141: 1120.6 | P141: 2379.7
A142: Madden, Christine | C142: 63 | D142: 2850 | E142: 83 | F142: W1 | G142: 3 | H142: 55 | I142: 2300 | K142: Madden, Christine | M142: 523.4 | N142: 902.9 | O142: 836.9 | P142: 2263.2
A143: Weis, Traci | C143: 81.5 | D143: 860 | E143: 76 | F143: W1 | G143: 3.5 | H143: 55 | I143: 1425 | K143: Weis, Traci | M143: 856 | N143: 517.2 | O143: 763.3 | P143: 2136.5
A144: Timmerman, Leah | C144: 55.5 | D144: 820 | E144: 118 | F144: W1 | G144: 1.5 | H144: 52 | I144: 2300 | K144: Timmerman, Leah | M144: 412.3 | N144: 505.9 | O144: 1176.1 | P144: 2094.3
A145: Tyler, Camille | C145: 55.5 | D145: 1800 | E145: 61 | F145: W1 | G145: 1.5 | H145: 52 | I145: 2300 | K145: Tyler, Camille | M145: 412.3 | N145: 729.2 | O145: 596.3 | P145: 1737.8
A146: Zoellner, Kelly | C146: 94 | D146: 3120 | E146: 130 | F146: W2 | G146: 4 | H146: 55 | I146: 1200 | K146: Zoellner, Kelly | M146: 1059.2 | N146: 789.6 | O146: 1166.9 | P146: 3015.7
A147: Kalkbrenner, Erin | C147: 92 | D147: 2820 | E147: 115 | F147: W2 | G147: 2 | H147: 55 | I147: 1200 | K147: Kalkbrenner, Erin | M147: 1007.1 | N147: 741.4 | O147: 991 | P147: 2739.5
A148: Harris, Betsy | C148: 86 | D148: 3750 | E148: 109 | F148: W2 | G148: 2 | H148: 55 | I148: 1300 | K148: Harris, Betsy | M148: 860.2 | N148: 885.4 | O148: 921.2 | P148: 2666.8
A149: Barringer, Jamie | C149: 80 | D149: 3790 | E149: 109 | F149: W2 | G149: 2 | H149: 55 | I149: 1425 | K149: Barringer, Jamie | M149: 726.9 | N149: 891.3 | O149: 921.2 | P149: 2539.4
A150: Lemley, Sara | C150: 80 | D150: 3930 | E150: 98 | F150: W2 | G150: 2 | H150: 55 | I150: 1425 | K150: Lemley, Sara | M150: 726.9 | N150: 911.7 | O150: 794.3 | P150: 2432.9
A151: Bucher, Michelle | C151: 87.5 | D151: 1110 | E151: 81 | F151: W2 | G151: 3.5 | H151: 55 | I151: 1300 | K151: Bucher, Michelle | M151: 895.6 | N151: 414.7 | O151: 600.9 | P151: 1911.2
A152: Klein, Lisa | C152: 77 | D152: 1060 | E152: 56 | F152: W2 | G152: 5 | H152: 55 | I152: 1600 | K152: Klein, Lisa | M152: 665.3 | N152: 403 | O152: 324.7 | P152: 1393
A153: Scharpf, Amy | C153: 0.5 | D153: 990 | E153: 106 | F153: W2 | G153: 0.5 | H153: 25 | I153: 2300 | K153: Scharpf, Amy | M153: 4 | N153: 386.2 | O153: 886.5 | P153: 1276.7
A154: Petit, Kyle | C154: 74 | D154: 850 | E154: 45 | F154: W2 | G154: 2 | H154: 55 | I154: 1600 | K154: Petit, Kyle | M154: 607 | N154: 351.2 | O154: 207.6 | P154: 1165.8
A155: Krueger, Lori | C155: 89 | D155: 3880 | E155: 103 | F155: W3 | G155: 5 | H155: 55 | I155: 1300 | K155: Krueger, Lori | M155: 930.5 | N155: 1103.1 | O155: 964.8 | P155: 2998.4
A156: Nagle, Brandy | C156: 86 | D156: 4210 | E156: 100 | F156: W3 | G156: 2 | H156: 55 | I156: 1300 | K156: Nagle, Brandy | M156: 843.3 | N156: 1161.1 | O156: 932.9 | P156: 2937.3
A157: Lamb, Lisa | C157: 80.5 | D157: 1480 | E157: 107 | F157: W3 | G157: 2.5 | H157: 55 | I157: 1425 | K157: Lamb, Lisa | M157: 698.3 | N157: 602.2 | O157: 1007.2 | P157: 2307.7
A158: Krueger, Julie | C158: 81 | D158: 3190 | E158: 69 | F158: W3 | G158: 3 | H158: 55 | I158: 1425 | K158: Krueger, Julie | M158: 710.7 | N158: 975.4 | O158: 592 | P158: 2278.1
A159: Friese, Heather | C159: 80.5 | D159: 2000 | E159: 79 | F159: W3 | G159: 2.5 | H159: 55 | I159: 1425 | K159: Friese, Heather | M159: 698.3 | N159: 727.5 | O159: 704.3 | P159: 2130.1
A160: Withrow, Jenny | C160: 3.5 | D160: 660 | E160: 108 | F160: W3 | G160: 3.5 | H160: 25 | I160: 2300 | K160: Withrow, Jenny | M160: 28 | N160: 362.6 | O160: 1017.8 | P160: 1408.4
A161: Bergmark, Connie | C161: 86 | D161: 2330 | E161: 91 | F161: W4 | G161: 2 | H161: 55 | I161: 1300 | K161: Bergmark, Connie | M161: 938.5 | N161: 802.7 | O161: 1050.1 | P161: 2791.3
A162: Koenig, Mary | C162: 86.5 | D162: 2330 | E162: 89 | F162: W4 | G162: 2.5 | H162: 55 | I162: 1300 | K162: Koenig, Mary | M162: 955 | N162: 802.7 | O162: 1021.1 | P162: 2778.8
A163: Abbott, Beverly | C163: 76.25 | D163: 1890 | E163: 66 | F163: W4 | G163: 4.25 | H163: 55 | I163: 1600 | K163: Abbott, Beverly | M163: 656.1 | N163: 691.4 | O163: 687.8 | P163: 2035.3
A164: Olson, Diana | C164: 49 | D164: 1790 | E164: 81 | F164: W4 | G164: 1 | H164: 49 | I164: 2300 | K164: Olson, Diana | M164: 192 | N164: 665.1 | O164: 905.1 | P164: 1762.2
A165: McCollum, Shelley | C165: 74 | D165: 500 | E165: 46 | F165: W4 | G165: 2 | H165: 55 | I165: 1600 | K165: McCollum, Shelley | M165: 600.7 | N165: 267.9 | O165: 398.6 | P165: 1267.2
A166: Lindsey, Tristina | C166: 4 | D166: 1650 | E166: 41 | F166: W4 | G166: 4 | H166: 25 | I166: 2300 | K166: Lindsey, Tristina | M166: 32 | N166: 627.6 | O166: 326.4 | P166: 986
A167: Gradick, Debra | C167: 61.5 | D167: 740 | E167: 0 | F167: W4 | G167: 1.5 | H167: 55 | I167: 2300 | K167: Gradick, Debra | M167: 352.5 | N167: 354.3 | O167: 0 | P167: 706.8
A168: Fausold, Janie | C168: 86 | D168: 2780 | E168: 79 | F168: W5 | G168: 2 | H168: 52 | I168: 1200 | K168: Fausold, Janie | M168: 1122.1 | N168: 886.1 | O168: 1019.3 | P168: 3027.5
A169: Tucker, Diane | C169: 74.5 | D169: 2750 | E169: 70 | F169: W5 | G169: 2.5 | H169: 52 | I169: 1425 | K169: Tucker, Diane | M169: 610.4 | N169: 877.6 | O169: 866.8 | P169: 2354.8
A170: Madden, Janet | C170: 59 | D170: 1670 | E170: 56 | F170: W5 | G170: 5 | H170: 52 | I170: 2300 | K170: Madden, Janet | M170: 241 | N170: 566.1 | O170: 632.3 | P170: 1439.4
A171: Surdej, Barb | C171: 69.5 | D171: 1320 | E171: 45 | F171: W5 | G171: 3.5 | H171: 52 | I171: 1600 | K171: Surdej, Barb | M171: 458 | N171: 460.4 | O171: 450.9 | P171: 1369.3
A172: Schmitt, Cheryl | C172: 4 | D172: 620 | E172: 41 | F172: W5 | G172: 4 | H172: 25 | I172: 2300 | K172: Schmitt, Cheryl | M172: 32 | N172: 236.9 | O172: 385.7 | P172: 654.6
A173: Edwards, Prissy | C173: 69 | D173: 2630 | E173: 52 | F173: W6 | G173: 3 | H173: 52 | I173: 1600 | K173: Edwards, Prissy | M173: 688.6 | N173: 1086.1 | O173: 452.4 | P173: 2227.1
A174: Cavenaugh, Brenda | C174: 53 | D174: 740 | E174: 41 | F174: W6 | G174: 5 | H174: 49 | I174: 2300 | K174: Cavenaugh, Brenda | M174: 234.3 | N174: 351.3 | O174: 233.8 | P174: 819.4
A175: Prociw, Janice | C175: 48.5 | D175: 1300 | E175: 59 | F175: W7 | G175: 0.5 | H175: 49 | I175: 2300 | K175: Prociw, Janice | M175: 234.2 | N175: 680.7 | O175: 1109.9 | P175: 2024.8
A176: Piercy, Janet | C176: 69.5 | D176: 1520 | E176: 28 | F176: W7 | G176: 3.5 | H176: 49 | I176: 1425 | K176: Piercy, Janet | M176: 871.8 | N176: 776.2 | O176: 216.7 | P176: 1864.7
A177: Fischer, Pat | C177: 52 | D177: 1170 | F177: W8 | G177: 4 | H177: 49 | I177: 2300 | K177: Fischer, Pat | M177: 414 | N177: 807.7 | O177: 0 | P177: 1221.7
A178: Price, Artis | C178: 37 | D178: 1220 | F178: WA | G178: 1 | H178: 43 | I178: 2300 | K178: Price, Artis | M178: 389.8 | N178: 1500 | O178: 0 | P178: 1889.8
